Workbook

Sheet Participants - QTR
E1: Jul13 - Sep13 | H1: Oct13 - Dec13 | K1: Jan14 - Mar14 | N1: Apr14 - Jun14 | Q1: Jul14 - Sep14 | T1: Oct14 - Dec14 | W1: Jan15 - Mar15 | Z1: Apr15 - Jun15 | AC1: Jul15 - Sep15 | AF1: Oct15 - Dec15 | AI1: Jan16 - Mar16 | AL1: Apr16 - Jun16 | AO1: Jul16 - Sep16 | AR1: Oct16 - Dec16 | AU1: Jan17 - Mar17 | AX1: Apr17 - Jun17 | BA1: Jul17 - Sep17 | BD1: Oct17 - Dec17 | BG1: Jan18 - Mar18 | BJ1: Apr18 - Jun18 | BM1: Jul18 - Sep18 | BP1: Oct18 - Dec18 | BS1: Jan19 - Mar19 | BV1: Apr19 - Jun19
A2: WDA # | B2: WDA Name | C2: Grantee # | D2: Grantee Name | E2: Missing SSN | F2: Total Participants | G2: Rate | H2: Missing SSN | I2: Total Participants | J2: Rate | K2: Missing SSN | L2: Total Participants | M2: Rate | N2: Missing SSN | O2: Total Participants | P2: Rate | Q2: Missing SSN | R2: Total Participants | S2: Rate | T2: Missing SSN | U2: Total Participants | V2: Rate | W2: Missing SSN | X2: Total Participants | Y2: Rate | Z2: Missing SSN | AA2: Total Participants | AB2: Rate | AC2: Missing SSN | AD2: Total Participants | AE2: Rate | AF2: Missing SSN | AG2: Total Participants | AH2: Rate | AI2: Missing SSN | AJ2: Total Participants | AK2: Rate | AL2: Missing SSN | AM2: Total Participants | AN2: Rate | AO2: Missing SSN | AP2: Total Participants | AQ2: Rate | AR2: Missing SSN | AS2: Total Participants | AT2: Rate | AU2: Missing SSN | AV2: Total Participants | AW2: Rate | AX2: Missing SSN | AY2: Total Participants | AZ2: Rate | BA2: Missing SSN | BB2: Total Participants | BC2: Rate | BD2: Missing SSN | BE2: Total Participants | BF2: Rate | BG2: Missing SSN | BH2: Total Participants | BI2: Rate | BJ2: Missing SSN | BK2: Total Participants | BL2: Rate | BM2: Missing SSN | BN2: Total Participants | BO2: Rate | BP2: Missing SSN | BQ2: Total Participants | BR2: Rate | BS2: Missing SSN | BT2: Total Participants | BU2: Rate | BV2: Missing SSN | BW2: Total Participants | BX2: Rate
A3: 1 | B3: Panhandle | C3: 502 | D3: Amarillo College | E3: 40 | F3: 258 | G3: =E3/F3 -> 0.1550387597 | H3: 45 | I3: 285 | J3: =H3/I3 -> 0.1578947368 | K3: 45 | L3: 301 | M3: =K3/L3 -> 0.1495016611 | N3: 41 | O3: 249 | P3: =N3/O3 -> 0.1646586345 | Q3: 1 | R3: 20 | S3: =Q3/R3 -> 0.05 | T3: 26 | U3: 208 | V3: =T3/U3 -> 0.125 | W3: 158 | X3: 635 | Y3: =W3/X3 -> 0.2488188976 | Z3: 165 | AA3: 680 | AB3: =Z3/AA3 -> 0.2426470588 | AC3: 103 | AD3: 386 | AE3: =AC3/AD3 -> 0.2668393782 | AF3: 96 | AG3: 472 | AH3: =AF3/AG3 -> 0.2033898305 | AI3: 375 | AJ3: 995 | AK3: =AI3/AJ3 -> 0.3768844221 | AL3: 327 | AM3: 914 | AN3: =AL3/AM3 -> 0.3577680525 | AO3: 247 | AP3: 682 | AQ3: =AO3/AP3 -> 0.362170088 | AR3: 294 | AS3: 812 | AT3: =AR3/AS3 -> 0.3620689655 | AU3: 268 | AV3: 713 | AW3: =AU3/AV3 -> 0.3758765778 | AX3: 212 | AY3: 568 | AZ3: =AX3/AY3 -> 0.3732394366 | BA3: 175 | BB3: 677 | BC3: =BA3/BB3 -> 0.258493353 | BD3: 221 | BE3: 866 | BF3: =BD3/BE3 -> 0.2551963048 | BG3: 253 | BH3: 802 | BI3: =BG3/BH3 -> 0.3154613466 | BJ3: 207 | BK3: 618 | BL3: =BJ3/BK3 -> 0.3349514563 | BM3: 160 | BN3: 544 | BO3: =BM3/BN3 -> 0.2941176471 | BP3: 209 | BQ3: 699 | BR3: =BP3/BQ3 -> 0.2989985694 | BS3: 242 | BT3: 762 | BU3: =BS3/BT3 -> 0.3175853018 | BV3: 210 | BW3: 671 | BX3: =BV3/BW3 -> 0.3129657228
A4: 2 | B4: South Plains | C4: 526 | D4: Region 17 ESC, South Plains | E4: 38 | F4: 126 | G4: =E4/F4 -> 0.3015873016 | H4: 48 | I4: 181 | J4: =H4/I4 -> 0.2651933702 | K4: 52 | L4: 199 | M4: =K4/L4 -> 0.2613065327 | N4: 57 | O4: 204 | P4: =N4/O4 -> 0.2794117647 | Q4: 119 | R4: 399 | S4: =Q4/R4 -> 0.298245614 | T4: 167 | U4: 504 | V4: =T4/U4 -> 0.3313492063 | W4: 132 | X4: 480 | Y4: =W4/X4 -> 0.275 | Z4: 100 | AA4: 406 | AB4: =Z4/AA4 -> 0.2463054187 | AC4: 71 | AD4: 320 | AE4: =AC4/AD4 -> 0.221875 | AF4: 134 | AG4: 487 | AH4: =AF4/AG4 -> 0.2751540041 | AI4: 128 | AJ4: 506 | AK4: =AI4/AJ4 -> 0.2529644269 | AL4: 98 | AM4: 466 | AN4: =AL4/AM4 -> 0.2103004292 | AO4: 86 | AP4: 438 | AQ4: =AO4/AP4 -> 0.196347032 | AR4: 127 | AS4: 545 | AT4: =AR4/AS4 -> 0.2330275229 | AU4: 124 | AV4: 535 | AW4: =AU4/AV4 -> 0.2317757009 | AX4: 101 | AY4: 451 | AZ4: =AX4/AY4 -> 0.2239467849 | BA4: 74 | BB4: 334 | BC4: =BA4/BB4 -> 0.2215568862 | BD4: 95 | BE4: 449 | BF4: =BD4/BE4 -> 0.2115812918 | BG4: 109 | BH4: 475 | BI4: =BG4/BH4 -> 0.2294736842 | BJ4: 95 | BK4: 434 | BL4: =BJ4/BK4 -> 0.2188940092 | BM4: 70 | BN4: 413 | BO4: =BM4/BN4 -> 0.1694915254 | BP4: 146 | BQ4: 572 | BR4: =BP4/BQ4 -> 0.2552447552 | BS4: 137 | BT4: 510 | BU4: =BS4/BT4 -> 0.268627451 | BV4: 84 | BW4: 378 | BX4: =BV4/BW4 -> 0.2222222222
A5: 3 | B5: North Texas | C5: 528 | D5: Region 9 ESC | E5: 92 | F5: 253 | G5: 0.3636363636 | H5: 110 | I5: 298 | J5: 0.3691275168 | K5: 83 | L5: 208 | M5: 0.3990384615 | N5: 82 | O5: 232 | P5: 0.3534482759 | Q5: 114 | R5: 267 | S5: 0.4269662921 | T5: 135 | U5: 308 | V5: 0.4383116883 | W5: 123 | X5: 303 | Y5: 0.4059405941 | Z5: 95 | AA5: 302 | AB5: 0.3145695364 | AC5: 86 | AD5: 249 | AE5: 0.3453815261 | AF5: 132 | AG5: 316 | AH5: 0.417721519 | AI5: 122 | AJ5: 313 | AK5: 0.3897763578 | AL5: 108 | AM5: 270 | AN5: 0.4 | AO5: 68 | AP5: 221 | AQ5: 0.3076923077 | AR5: 132 | AS5: 348 | AT5: 0.3793103448 | AU5: 112 | AV5: 325 | AW5: 0.3446153846 | AX5: 83 | AY5: 297 | AZ5: 0.2794612795 | BA5: 75 | BB5: 300 | BC5: 0.25 | BD5: 95 | BE5: 341 | BF5: 0.2785923754 | BG5: 81 | BH5: 320 | BI5: 0.253125 | BJ5: 64 | BK5: 267 | BL5: 0.2397003745 | BM5: 61 | BN5: 204 | BO5: 0.2990196078 | BP5: 108 | BQ5: 285 | BR5: 0.3789473684 | BS5: 84 | BT5: 251 | BU5: 0.3346613546 | BV5: 66 | BW5: 266 | BX5: 0.2481203008
A6: 4 | B6: North Central | C6: 533 | D6: Weatherford ISD | E6: 9 | F6: 60 | G6: 0.15 | H6: 52 | I6: 128 | J6: 0.40625 | K6: 80 | L6: 160 | M6: 0.5 | N6: 69 | O6: 137 | P6: 0.503649635 | Q6: 53 | R6: 104 | S6: 0.5096153846 | T6: 81 | U6: 168 | V6: 0.4821428571 | W6: 124 | X6: 272 | Y6: 0.4558823529 | Z6: 104 | AA6: 221 | AB6: 0.4705882353 | AC6: 50 | AD6: 141 | AE6: 0.3546099291 | AF6: 114 | AG6: 236 | AH6: 0.4830508475 | AI6: 114 | AJ6: 252 | AK6: 0.4523809524 | AL6: 83 | AM6: 191 | AN6: 0.4345549738 | AO6: 46 | AP6: 105 | AQ6: 0.4380952381 | AR6: 90 | AS6: 195 | AT6: 0.4615384615 | AU6: 90 | AV6: 215 | AW6: 0.4186046512 | AX6: 59 | AY6: 156 | AZ6: 0.3782051282 | BA6: 72 | BB6: 200 | BC6: 0.36 | BD6: 76 | BE6: 203 | BF6: 0.3743842365 | BG6: 68 | BH6: 161 | BI6: 0.4223602484 | BJ6: 81 | BK6: 159 | BL6: 0.5094339623 | BM6: 94 | BN6: 223 | BO6: 0.4215246637 | BP6: 124 | BQ6: 279 | BR6: 0.4444444444 | BS6: 106 | BT6: 230 | BU6: 0.4608695652 | BV6: 96 | BW6: 207 | BX6: 0.4637681159
A7: 4 | B7: North Central | C7: 536 | D7: Denton ISD | E7: 424 | F7: 693 | G7: 0.6118326118 | H7: 630 | I7: 943 | J7: 0.6680805938 | K7: 576 | L7: 849 | M7: 0.6784452297 | N7: 440 | O7: 669 | P7: 0.6576980568 | Q7: 466 | R7: 741 | S7: 0.628879892 | T7: 779 | U7: 1157 | V7: 0.6732929991 | W7: 761 | X7: 1149 | Y7: 0.6623150566 | Z7: 626 | AA7: 964 | AB7: 0.6493775934 | AC7: 354 | AD7: 605 | AE7: 0.5851239669 | AF7: 1038 | AG7: 1554 | AH7: 0.667953668 | AI7: 1049 | AJ7: 1591 | AK7: 0.6593337524 | AL7: 833 | AM7: 1255 | AN7: 0.6637450199 | AO7: 406 | AP7: 715 | AQ7: 0.5678321678 | AR7: 863 | AS7: 1318 | AT7: 0.6547799697 | AU7: 973 | AV7: 1507 | AW7: 0.6456536165 | AX7: 925 | AY7: 1440 | AZ7: 0.6423611111 | BA7: 673 | BB7: 1025 | BC7: 0.6565853659 | BD7: 1078 | BE7: 1512 | BF7: 0.712962963 | BG7: 1054 | BH7: 1483 | BI7: 0.7107215105 | BJ7: 984 | BK7: 1436 | BL7: 0.6852367688 | BM7: 583 | BN7: 858 | BO7: 0.6794871795 | BP7: 1191 | BQ7: 1654 | BR7: 0.7200725514 | BS7: 1380 | BT7: 1879 | BU7: 0.7344332092 | BV7: 1365 | BW7: 1876 | BX7: 0.7276119403
A8: 4 | B8: North Central | C8: 540 | D8: Navarro College | E8: 68 | F8: 206 | G8: 0.3300970874 | H8: 105 | I8: 328 | J8: 0.3201219512 | K8: 102 | L8: 276 | M8: 0.3695652174 | N8: 95 | O8: 250 | P8: 0.38 | Q8: 67 | R8: 192 | S8: 0.3489583333 | T8: 109 | U8: 308 | V8: 0.3538961039 | W8: 101 | X8: 292 | Y8: 0.345890411 | Z8: 111 | AA8: 351 | AB8: 0.3162393162 | AC8: 92 | AD8: 247 | AE8: 0.3724696356 | AF8: 117 | AG8: 309 | AH8: 0.3786407767 | AI8: 147 | AJ8: 364 | AK8: 0.4038461538 | AL8: 137 | AM8: 321 | AN8: 0.4267912773 | AO8: 85 | AP8: 220 | AQ8: 0.3863636364 | AR8: 137 | AS8: 338 | AT8: 0.4053254438 | AU8: 136 | AV8: 385 | AW8: 0.3532467532 | AX8: 123 | AY8: 420 | AZ8: 0.2928571429 | BA8: 83 | BB8: 303 | BC8: 0.2739273927 | BD8: 107 | BE8: 393 | BF8: 0.272264631 | BG8: 101 | BH8: 376 | BI8: 0.2686170213 | BJ8: 94 | BK8: 385 | BL8: 0.2441558442 | BM8: 77 | BN8: 309 | BO8: 0.2491909385 | BP8: 102 | BQ8: 408 | BR8: 0.25 | BS8: 116 | BT8: 421 | BU8: 0.2755344418 | BV8: 121 | BW8: 429 | BX8: 0.2820512821
A9: 4 | B9: North Central | C9: 541 | D9: Paris Jr College - North Central | G9: NA | J9: NA | M9: NA | P9: NA | S9: NA | T9: 1 | U9: 4 | V9: 0.25 | W9: 13 | X9: 20 | Y9: 0.65 | Z9: 39 | AA9: 66 | AB9: 0.5909090909 | AC9: 35 | AD9: 65 | AE9: 0.5384615385 | AF9: 35 | AG9: 77 | AH9: 0.4545454545 | AI9: 38 | AJ9: 82 | AK9: 0.4634146341 | AL9: 33 | AM9: 78 | AN9: 0.4230769231 | AO9: 18 | AP9: 45 | AQ9: 0.4 | AR9: 28 | AS9: 77 | AT9: 0.3636363636 | AU9: 33 | AV9: 98 | AW9: 0.3367346939 | AX9: 32 | AY9: 88 | AZ9: 0.3636363636 | BA9: 20 | BB9: 67 | BC9: 0.2985074627 | BD9: 24 | BE9: 79 | BF9: 0.3037974684 | BG9: 27 | BH9: 93 | BI9: 0.2903225806 | BJ9: 26 | BK9: 95 | BL9: 0.2736842105 | BM9: 9 | BN9: 34 | BO9: 0.2647058824 | BP9: 13 | BQ9: 62 | BR9: 0.2096774194 | BS9: 17 | BT9: 77 | BU9: 0.2207792208 | BV9: 19 | BW9: 72 | BX9: 0.2638888889
A10: 5 | B10: Tarrant County | C10: 538 | D10: Tarrant County WDB | E10: 646 | F10: 1280 | G10: 0.5046875 | H10: 1193 | I10: 2107 | J10: 0.5662078785 | K10: 1170 | L10: 2047 | M10: 0.5715681485 | N10: 873 | O10: 1640 | P10: 0.5323170732 | Q10: 772 | R10: 1420 | S10: 0.5436619718 | T10: 1626 | U10: 2702 | V10: 0.6017764619 | W10: 1615 | X10: 2758 | Y10: 0.5855692531 | Z10: 1255 | AA10: 2212 | AB10: 0.5673598553 | AC10: 908 | AD10: 1580 | AE10: 0.5746835443 | AF10: 1786 | AG10: 2888 | AH10: 0.6184210526 | AI10: 1838 | AJ10: 2994 | AK10: 0.6138944556 | AL10: 1437 | AM10: 2472 | AN10: 0.5813106796 | AO10: 631 | AP10: 1191 | AQ10: 0.529806885 | AR10: 1900 | AS10: 3016 | AT10: 0.6299734748 | AU10: 1915 | AV10: 2918 | AW10: 0.6562714188 | AX10: 1706 | AY10: 2678 | AZ10: 0.6370425691 | BA10: 738 | BB10: 1375 | BC10: 0.5367272727 | BD10: 1761 | BE10: 2961 | BF10: 0.5947315096 | BG10: 1640 | BH10: 2932 | BI10: 0.5593451569 | BJ10: 1477 | BK10: 2813 | BL10: 0.5250622112 | BM10: 708 | BN10: 1520 | BO10: 0.4657894737 | BP10: 1636 | BQ10: 2842 | BR10: 0.57565095 | BS10: 1612 | BT10: 2765 | BU10: 0.5830018083 | BV10: 1540 | BW10: 2765 | BX10: 0.5569620253
A11: 6 | B11: Dallas County | C11: 509 | D11: Dallas County LDB | E11: 1778 | F11: 2521 | G11: 0.7052756843 | H11: 2148 | I11: 3067 | J11: 0.7003586567 | K11: 2348 | L11: 3462 | M11: 0.6782206817 | N11: 2043 | O11: 3039 | P11: 0.672260612 | Q11: 1081 | R11: 1777 | S11: 0.6083286438 | T11: 1257 | U11: 2104 | V11: 0.5974334601 | W11: 1311 | X11: 2422 | Y11: 0.5412881916 | Z11: 1265 | AA11: 2647 | AB11: 0.4778995089 | AC11: 1160 | AD11: 2698 | AE11: 0.4299481097 | AF11: 1701 | AG11: 3610 | AH11: 0.4711911357 | AI11: 1908 | AJ11: 3922 | AK11: 0.4864864865 | AL11: 1869 | AM11: 3754 | AN11: 0.4978689398 | AO11: 1487 | AP11: 2733 | AQ11: 0.5440907428 | AR11: 2499 | AS11: 4046 | AT11: 0.6176470588 | AU11: 2614 | AV11: 4077 | AW11: 0.641157714 | AX11: 2707 | AY11: 4411 | AZ11: 0.6136930401 | BA11: 1997 | BB11: 3320 | BC11: 0.6015060241 | BD11: 2620 | BE11: 4278 | BF11: 0.6124357176 | BG11: 2612 | BH11: 4100 | BI11: 0.6370731707 | BJ11: 2826 | BK11: 4362 | BL11: 0.6478679505 | BM11: 2008 | BN11: 3281 | BO11: 0.612008534 | BP11: 2581 | BQ11: 3983 | BR11: 0.6480040171 | BS11: 2578 | BT11: 3639 | BU11: 0.7084363836 | BV11: 2909 | BW11: 4086 | BX11: 0.7119432208
A12: 7 | B12: North East Texas | C12: 523 | D12: Paris Junior College, Northeast Texas | E12: 51 | F12: 165 | G12: 0.3090909091 | H12: 160 | I12: 376 | J12: 0.4255319149 | K12: 119 | L12: 289 | M12: 0.4117647059 | N12: 97 | O12: 237 | P12: 0.4092827004 | Q12: 51 | R12: 169 | S12: 0.3017751479 | T12: 97 | U12: 271 | V12: 0.3579335793 | W12: 78 | X12: 209 | Y12: 0.3732057416 | Z12: 72 | AA12: 207 | AB12: 0.347826087 | AC12: 70 | AD12: 202 | AE12: 0.3465346535 | AF12: 106 | AG12: 272 | AH12: 0.3897058824 | AI12: 98 | AJ12: 249 | AK12: 0.3935742972 | AL12: 81 | AM12: 200 | AN12: 0.405 | AO12: 67 | AP12: 154 | AQ12: 0.4350649351 | AR12: 111 | AS12: 245 | AT12: 0.4530612245 | AU12: 104 | AV12: 283 | AW12: 0.3674911661 | AX12: 91 | AY12: 233 | AZ12: 0.3905579399 | BA12: 93 | BB12: 240 | BC12: 0.3875 | BD12: 96 | BE12: 247 | BF12: 0.3886639676 | BG12: 105 | BH12: 250 | BI12: 0.42 | BJ12: 90 | BK12: 240 | BL12: 0.375 | BM12: 91 | BN12: 241 | BO12: 0.377593361 | BP12: 120 | BQ12: 259 | BR12: 0.4633204633 | BS12: 114 | BT12: 273 | BU12: 0.4175824176 | BV12: 99 | BW12: 256 | BX12: 0.38671875
A13: 7 | B13: North East Texas | C13: 543 | D13: Texarkana College | E13: 223 | F13: 384 | G13: 0.5807291667 | H13: 235 | I13: 437 | J13: 0.5377574371 | K13: 225 | L13: 407 | M13: 0.5528255528 | N13: 204 | O13: 361 | P13: 0.5650969529 | Q13: 11 | R13: 150 | S13: 0.07333333333 | T13: 13 | U13: 183 | V13: 0.07103825137 | W13: 3 | X13: 157 | Y13: 0.01910828025 | Z13: 14 | AA13: 164 | AB13: 0.08536585366 | AC13: 16 | AD13: 171 | AE13: 0.09356725146 | AF13: 15 | AG13: 197 | AH13: 0.07614213198 | AI13: 23 | AJ13: 187 | AK13: 0.1229946524 | AL13: 17 | AM13: 161 | AN13: 0.1055900621 | AO13: 13 | AP13: 164 | AQ13: 0.07926829268 | AR13: 12 | AS13: 198 | AT13: 0.06060606061 | AU13: 18 | AV13: 204 | AW13: 0.08823529412 | AX13: 12 | AY13: 186 | AZ13: 0.06451612903 | BA13: 12 | BB13: 138 | BC13: 0.08695652174 | BD13: 12 | BE13: 153 | BF13: 0.07843137255 | BG13: 13 | BH13: 140 | BI13: 0.09285714286 | BJ13: 11 | BK13: 138 | BL13: 0.07971014493 | BM13: 10 | BN13: 101 | BO13: 0.09900990099 | BP13: 26 | BQ13: 135 | BR13: 0.1925925926 | BS13: 19 | BT13: 148 | BU13: 0.1283783784 | BV13: 34 | BW13: 174 | BX13: 0.1954022989
A14: 8 | B14: East Texas | C14: 519 | D14: Literacy Council of Tyler | E14: 560 | F14: 1320 | G14: 0.4242424242 | H14: 630 | I14: 1466 | J14: 0.4297407913 | K14: 597 | L14: 1353 | M14: 0.4412416851 | N14: 566 | O14: 1383 | P14: 0.4092552422 | Q14: 573 | R14: 1348 | S14: 0.425074184 | T14: 669 | U14: 1544 | V14: 0.4332901554 | W14: 691 | X14: 1571 | Y14: 0.4398472311 | Z14: 674 | AA14: 1618 | AB14: 0.4165636588 | AC14: 526 | AD14: 1331 | AE14: 0.3951915853 | AF14: 710 | AG14: 1650 | AH14: 0.4303030303 | AI14: 701 | AJ14: 1710 | AK14: 0.4099415205 | AL14: 628 | AM14: 1631 | AN14: 0.3850398529 | AO14: 463 | AP14: 1261 | AQ14: 0.3671689136 | AR14: 662 | AS14: 1570 | AT14: 0.421656051 | AU14: 691 | AV14: 1613 | AW14: 0.4283942963 | AX14: 634 | AY14: 1505 | AZ14: 0.4212624585 | BA14: 517 | BB14: 1265 | BC14: 0.4086956522 | BD14: 629 | BE14: 1405 | BF14: 0.4476868327 | BG14: 628 | BH14: 1416 | BI14: 0.4435028249 | BJ14: 666 | BK14: 1516 | BL14: 0.4393139842 | BM14: 586 | BN14: 1276 | BO14: 0.4592476489 | BP14: 703 | BQ14: 1484 | BR14: 0.4737196765 | BS14: 641 | BT14: 1402 | BU14: 0.4572039943 | BV14: 645 | BW14: 1416 | BX14: 0.4555084746
A15: 9 | B15: West Central | C15: 501 | D15: Abilene ISD | E15: 15 | F15: 198 | G15: 0.07575757576 | H15: 21 | I15: 278 | J15: 0.07553956835 | K15: 20 | L15: 218 | M15: 0.09174311927 | N15: 19 | O15: 218 | P15: 0.0871559633 | Q15: 26 | R15: 322 | S15: 0.08074534161 | T15: 48 | U15: 481 | V15: 0.09979209979 | W15: 48 | X15: 445 | Y15: 0.1078651685 | Z15: 35 | AA15: 398 | AB15: 0.08793969849 | AC15: 12 | AD15: 196 | AE15: 0.0612244898 | AF15: 30 | AG15: 351 | AH15: 0.08547008547 | AI15: 31 | AJ15: 385 | AK15: 0.08051948052 | AL15: 18 | AM15: 334 | AN15: 0.05389221557 | AO15: 33 | AP15: 339 | AQ15: 0.09734513274 | AR15: 62 | AS15: 555 | AT15: 0.1117117117 | AU15: 62 | AV15: 523 | AW15: 0.1185468451 | AX15: 62 | AY15: 484 | AZ15: 0.1280991736 | BA15: 55 | BB15: 387 | BC15: 0.142118863 | BD15: 70 | BE15: 576 | BF15: 0.1215277778 | BG15: 71 | BH15: 528 | BI15: 0.134469697 | BJ15: 61 | BK15: 463 | BL15: 0.13174946 | BM15: 36 | BN15: 324 | BO15: 0.1111111111 | BP15: 83 | BQ15: 554 | BR15: 0.1498194946 | BS15: 79 | BT15: 482 | BU15: 0.1639004149 | BV15: 60 | BW15: 417 | BX15: 0.1438848921
A16: 10 | B16: Borderplex | C16: 544 | D16: Ysleta ISD | E16: 432 | F16: 1881 | G16: 0.2296650718 | H16: 545 | I16: 2267 | J16: 0.2404058227 | K16: 543 | L16: 2388 | M16: 0.2273869347 | N16: 434 | O16: 1997 | P16: 0.217325989 | Q16: 339 | R16: 1798 | S16: 0.1885428254 | T16: 399 | U16: 1969 | V16: 0.2026409345 | W16: 385 | X16: 2086 | Y16: 0.1845637584 | Z16: 314 | AA16: 1739 | AB16: 0.1805635423 | AC16: 307 | AD16: 1759 | AE16: 0.1745309835 | AF16: 339 | AG16: 1894 | AH16: 0.1789862724 | AI16: 346 | AJ16: 1964 | AK16: 0.1761710794 | AL16: 277 | AM16: 1629 | AN16: 0.1700429711 | AO16: 227 | AP16: 1496 | AQ16: 0.1517379679 | AR16: 283 | AS16: 1775 | AT16: 0.1594366197 | AU16: 310 | AV16: 2040 | AW16: 0.1519607843 | AX16: 225 | AY16: 1804 | AZ16: 0.1247228381 | BA16: 180 | BB16: 1583 | BC16: 0.1137081491 | BD16: 191 | BE16: 1684 | BF16: 0.1134204276 | BG16: 216 | BH16: 2088 | BI16: 0.1034482759 | BJ16: 181 | BK16: 1831 | BL16: 0.09885308575 | BM16: 151 | BN16: 1310 | BO16: 0.1152671756 | BP16: 181 | BQ16: 1750 | BR16: 0.1034285714 | BS16: 217 | BT16: 1926 | BU16: 0.1126687435 | BV16: 211 | BW16: 1881 | BX16: 0.1121743753
A17: 11 | B17: Permian Basin | C17: 517 | D17: Howard College, Permian Basin | E17: 91 | F17: 140 | G17: 0.65 | H17: 105 | I17: 171 | J17: 0.6140350877 | K17: 94 | L17: 155 | M17: 0.6064516129 | N17: 81 | O17: 137 | P17: 0.5912408759 | Q17: 81 | R17: 111 | S17: 0.7297297297 | T17: 73 | U17: 120 | V17: 0.6083333333 | W17: 65 | X17: 111 | Y17: 0.5855855856 | Z17: 66 | AA17: 125 | AB17: 0.528 | AC17: 61 | AD17: 118 | AE17: 0.5169491525 | AF17: 64 | AG17: 133 | AH17: 0.4812030075 | AI17: 64 | AJ17: 131 | AK17: 0.4885496183 | AL17: 28 | AM17: 93 | AN17: 0.3010752688 | AO17: 45 | AP17: 98 | AQ17: 0.4591836735 | AR17: 56 | AS17: 120 | AT17: 0.4666666667 | AU17: 53 | AV17: 110 | AW17: 0.4818181818 | AX17: 59 | AY17: 109 | AZ17: 0.5412844037 | BA17: 29 | BB17: 74 | BC17: 0.3918918919 | BD17: 26 | BE17: 86 | BF17: 0.3023255814 | BG17: 35 | BH17: 100 | BI17: 0.35 | BJ17: 125 | BK17: 170 | BL17: 0.7352941176 | BM17: 140 | BN17: 183 | BO17: 0.7650273224 | BP17: 140 | BQ17: 182 | BR17: 0.7692307692 | BS17: 120 | BT17: 168 | BU17: 0.7142857143 | BV17: 106 | BW17: 155 | BX17: 0.6838709677
A18: 11 | B18: Permian Basin | C18: 525 | D18: Region 17 ESC, Permian Basin | E18: 14 | F18: 47 | G18: 0.2978723404 | H18: 18 | I18: 53 | J18: 0.3396226415 | K18: 17 | L18: 56 | M18: 0.3035714286 | N18: 15 | O18: 53 | P18: 0.2830188679 | Q18: 49 | R18: 110 | S18: 0.4454545455 | T18: 60 | U18: 135 | V18: 0.4444444444 | W18: 49 | X18: 131 | Y18: 0.3740458015 | Z18: 42 | AA18: 113 | AB18: 0.3716814159 | AC18: 47 | AD18: 100 | AE18: 0.47 | AF18: 56 | AG18: 132 | AH18: 0.4242424242 | AI18: 51 | AJ18: 125 | AK18: 0.408 | AL18: 45 | AM18: 97 | AN18: NA | AO18: 44 | AP18: 107 | AQ18: 0.4112149533 | AR18: 52 | AS18: 121 | AT18: 0.4297520661 | AU18: 48 | AV18: 112 | AW18: 0.4285714286 | AX18: 29 | AY18: 77 | AZ18: NA | BA18: 44 | BB18: 104 | BC18: 0.4230769231 | BD18: 59 | BE18: 131 | BF18: 0.4503816794 | BG18: 58 | BH18: 115 | BI18: 0.5043478261 | BJ18: 47 | BK18: 94 | BL18: 0.5 | BM18: 65 | BN18: 126 | BO18: 0.5158730159 | BP18: 69 | BQ18: 131 | BR18: 0.5267175573 | BS18: 56 | BT18: 109 | BU18: 0.5137614679 | BV18: 48 | BW18: 83 | BX18: 0.578313253
A19: 11 | B19: Permian Basin | C19: 539 | D19: Midland College | E19: 73 | F19: 298 | G19: 0.244966443 | H19: 77 | I19: 348 | J19: 0.2212643678 | K19: 87 | L19: 341 | M19: 0.2551319648 | N19: 71 | O19: 256 | P19: 0.27734375 | Q19: 87 | R19: 348 | S19: 0.25 | T19: 102 | U19: 446 | V19: 0.2286995516 | W19: 149 | X19: 505 | Y19: 0.295049505 | Z19: 106 | AA19: 420 | AB19: 0.2523809524 | AC19: 138 | AD19: 491 | AE19: 0.2810590631 | AF19: 204 | AG19: 618 | AH19: 0.3300970874 | AI19: 134 | AJ19: 478 | AK19: 0.280334728 | AL19: 63 | AM19: 277 | AN19: 0.2274368231 | AO19: 114 | AP19: 482 | AQ19: 0.2365145228 | AR19: 148 | AS19: 569 | AT19: 0.2601054482 | AU19: 129 | AV19: 515 | AW19: 0.2504854369 | AX19: 88 | AY19: 383 | AZ19: 0.2297650131 | BA19: 77 | BB19: 356 | BC19: 0.2162921348 | BD19: 143 | BE19: 528 | BF19: 0.2708333333 | BG19: 119 | BH19: 449 | BI19: 0.2650334076 | BJ19: 100 | BK19: 364 | BL19: 0.2747252747 | BM19: 84 | BN19: 394 | BO19: 0.2131979695 | BP19: 97 | BQ19: 442 | BR19: 0.2194570136 | BS19: 119 | BT19: 481 | BU19: 0.2474012474 | BV19: 94 | BW19: 403 | BX19: 0.2332506203
A20: 11 | B20: Permian Basin | C20: 545 | D20: Odessa College | E20: 113 | F20: 409 | G20: 0.2762836186 | H20: 104 | I20: 406 | J20: 0.2561576355 | K20: 95 | L20: 356 | M20: 0.2668539326 | N20: 127 | O20: 384 | P20: 0.3307291667 | Q20: 92 | R20: 308 | S20: 0.2987012987 | T20: 101 | U20: 407 | V20: 0.2481572482 | W20: 125 | X20: 560 | Y20: 0.2232142857 | Z20: 113 | AA20: 499 | AB20: 0.2264529058 | AC20: 97 | AD20: 418 | AE20: 0.2320574163 | AF20: 93 | AG20: 437 | AH20: 0.2128146453 | AI20: 119 | AJ20: 598 | AK20: 0.1989966555 | AL20: 128 | AM20: 575 | AN20: 0.2226086957 | AO20: 122 | AP20: 498 | AQ20: 0.2449799197 | AR20: 118 | AS20: 554 | AT20: 0.2129963899 | AU20: 125 | AV20: 617 | AW20: 0.2025931929 | AX20: 121 | AY20: 552 | AZ20: 0.2192028986 | BA20: 106 | BB20: 472 | BC20: 0.2245762712 | BD20: 95 | BE20: 501 | BF20: 0.1896207585 | BG20: 129 | BH20: 591 | BI20: 0.2182741117 | BJ20: 137 | BK20: 560 | BL20: 0.2446428571 | BM20: 112 | BN20: 467 | BO20: 0.2398286938 | BP20: 106 | BQ20: 509 | BR20: 0.2082514735 | BS20: 128 | BT20: 555 | BU20: 0.2306306306 | BV20: 138 | BW20: 530 | BX20: 0.2603773585
A21: 12 | B21: Concho Valley | C21: 516 | D21: Howard College, Concho Valley | E21: 91 | F21: 277 | G21: 0.3285198556 | H21: 123 | I21: 358 | J21: 0.343575419 | K21: 171 | L21: 380 | M21: 0.45 | N21: 150 | O21: 355 | P21: 0.4225352113 | Q21: 132 | R21: 267 | S21: 0.4943820225 | T21: 149 | U21: 305 | V21: 0.4885245902 | W21: 136 | X21: 301 | Y21: 0.4518272425 | Z21: 89 | AA21: 272 | AB21: 0.3272058824 | AC21: 73 | AD21: 223 | AE21: 0.3273542601 | AF21: 95 | AG21: 294 | AH21: 0.3231292517 | AI21: 101 | AJ21: 333 | AK21: 0.3033033033 | AL21: 109 | AM21: 346 | AN21: 0.3150289017 | AO21: 61 | AP21: 246 | AQ21: 0.2479674797 | AR21: 61 | AS21: 265 | AT21: 0.2301886792 | AU21: 63 | AV21: 275 | AW21: 0.2290909091 | AX21: 15 | AY21: 216 | AZ21: 0.06944444444 | BA21: 10 | BB21: 227 | BC21: 0.04405286344 | BD21: 12 | BE21: 272 | BF21: 0.04411764706 | BG21: 12 | BH21: 299 | BI21: 0.04013377926 | BJ21: 12 | BK21: 342 | BL21: 0.0350877193 | BM21: 17 | BN21: 241 | BO21: 0.07053941909 | BP21: 15 | BQ21: 264 | BR21: 0.05681818182 | BS21: 15 | BT21: 253 | BU21: 0.05928853755 | BV21: 18 | BW21: 319 | BX21: 0.05642633229
A22: 13 | B22: Heart of Texas | C22: 520 | D22: McLennan Community College | E22: 279 | F22: 810 | G22: 0.3444444444 | H22: 286 | I22: 886 | J22: 0.3227990971 | K22: 259 | L22: 659 | M22: 0.3930197269 | N22: 242 | O22: 669 | P22: 0.3617339312 | Q22: 176 | R22: 562 | S22: 0.3131672598 | T22: 265 | U22: 699 | V22: 0.3791130186 | W22: 212 | X22: 591 | Y22: 0.358714044 | Z22: 161 | AA22: 481 | AB22: 0.3347193347 | AC22: 156 | AD22: 411 | AE22: 0.3795620438 | AF22: 272 | AG22: 620 | AH22: 0.4387096774 | AI22: 231 | AJ22: 631 | AK22: 0.3660855784 | AL22: 190 | AM22: 597 | AN22: 0.3182579564 | AO22: 183 | AP22: 549 | AQ22: 0.3333333333 | AR22: 241 | AS22: 682 | AT22: 0.353372434 | AU22: 231 | AV22: 582 | AW22: 0.3969072165 | AX22: 240 | AY22: 590 | AZ22: 0.406779661 | BA22: 222 | BB22: 630 | BC22: 0.3523809524 | BD22: 274 | BE22: 745 | BF22: 0.3677852349 | BG22: 195 | BH22: 601 | BI22: 0.3244592346 | BJ22: 175 | BK22: 559 | BL22: 0.313059034 | BM22: 155 | BN22: 485 | BO22: 0.3195876289 | BP22: 188 | BQ22: 581 | BR22: 0.3235800344 | BS22: 151 | BT22: 522 | BU22: 0.2892720307 | BV22: 129 | BW22: 497 | BX22: 0.2595573441
A23: 14 | B23: Capital Area | C23: 504 | D23: Austin Community College | E23: 685 | F23: 1522 | G23: 0.450065703 | H23: 820 | I23: 1785 | J23: 0.4593837535 | K23: 1008 | L23: 1816 | M23: 0.5550660793 | N23: 830 | O23: 1638 | P23: 0.5067155067 | Q23: 661 | R23: 1449 | S23: 0.4561766736 | T23: 974 | U23: 2024 | V23: 0.4812252964 | W23: 1059 | X23: 2015 | Y23: 0.5255583127 | Z23: 927 | AA23: 1817 | AB23: 0.5101816181 | AC23: 809 | AD23: 1900 | AE23: 0.4257894737 | AF23: 1051 | AG23: 2313 | AH23: 0.4543882404 | AI23: 1121 | AJ23: 2479 | AK23: 0.4521984671 | AL23: 1045 | AM23: 2303 | AN23: 0.4537559705 | AO23: 827 | AP23: 1861 | AQ23: 0.4443847394 | AR23: 1271 | AS23: 2531 | AT23: 0.5021730541 | AU23: 1232 | AV23: 2581 | AW23: 0.4773343665 | AX23: 1134 | AY23: 2525 | AZ23: 0.4491089109 | BA23: 829 | BB23: 2079 | BC23: 0.3987493987 | BD23: 1193 | BE23: 2697 | BF23: 0.4423433445 | BG23: 1137 | BH23: 2605 | BI23: 0.4364683301 | BJ23: 1055 | BK23: 2593 | BL23: 0.4068646356 | BM23: 706 | BN23: 1967 | BO23: 0.3589222166 | BP23: 1056 | BQ23: 2634 | BR23: 0.4009111617 | BS23: 1048 | BT23: 2558 | BU23: 0.4096950743 | BV23: 1020 | BW23: 2721 | BX23: 0.374862183 | CC23: `
A24: 15 | B24: Rural Capital | C24: 508 | D24: Community Action Inc. | E24: 120 | F24: 334 | G24: 0.3592814371 | H24: 226 | I24: 544 | J24: 0.4154411765 | K24: 189 | L24: 480 | M24: 0.39375 | N24: 148 | O24: 427 | P24: 0.3466042155 | Q24: 138 | R24: 384 | S24: 0.359375 | T24: 212 | U24: 563 | V24: 0.3765541741 | W24: 199 | X24: 549 | Y24: 0.3624772313 | Z24: 165 | AA24: 463 | AB24: 0.3563714903 | AC24: 103 | AD24: 369 | AE24: 0.2791327913 | AF24: 182 | AG24: 553 | AH24: 0.3291139241 | AI24: 308 | AJ24: 730 | AK24: 0.4219178082 | AL24: 236 | AM24: 599 | AN24: 0.3939899833 | AO24: 198 | AP24: 452 | AQ24: 0.4380530973 | AR24: 443 | AS24: 850 | AT24: 0.5211764706 | AU24: 496 | AV24: 1000 | AW24: 0.496 | AX24: 453 | AY24: 970 | AZ24: 0.4670103093 | BA24: 320 | BB24: 777 | BC24: 0.4118404118 | BD24: 594 | BE24: 1232 | BF24: 0.4821428571 | BG24: 492 | BH24: 1088 | BI24: 0.4522058824 | BJ24: 455 | BK24: 1098 | BL24: 0.4143897996 | BM24: 368 | BN24: 980 | BO24: 0.3755102041 | BP24: 572 | BQ24: 1375 | BR24: 0.416 | BS24: 573 | BT24: 1425 | BU24: 0.4021052632 | BV24: 491 | BW24: 1297 | BX24: 0.3785659214
A25: 16 | B25: Brazos Valley | C25: 505 | D25: Brazos Valley COG | E25: 456 | F25: 860 | G25: 0.5302325581 | H25: 863 | I25: 1611 | J25: 0.5356921167 | K25: 879 | L25: 1518 | M25: 0.5790513834 | N25: 731 | O25: 1299 | P25: 0.5627405697 | Q25: 237 | R25: 462 | S25: 0.512987013 | T25: 423 | U25: 793 | V25: 0.5334174023 | W25: 474 | X25: 888 | Y25: 0.5337837838 | Z25: 339 | AA25: 682 | AB25: 0.4970674487 | AC25: 114 | AD25: 337 | AE25: 0.3382789318 | AF25: 279 | AG25: 645 | AH25: 0.4325581395 | AI25: 367 | AJ25: 750 | AK25: 0.4893333333 | AL25: 312 | AM25: 631 | AN25: 0.4944532488 | AO25: 142 | AP25: 330 | AQ25: 0.4303030303 | AR25: 250 | AS25: 528 | AT25: 0.4734848485 | AU25: 291 | AV25: 621 | AW25: 0.4685990338 | AX25: 305 | AY25: 613 | AZ25: 0.4975530179 | BA25: 292 | BB25: 567 | BC25: 0.5149911817 | BD25: 344 | BE25: 668 | BF25: 0.5149700599 | BG25: 329 | BH25: 670 | BI25: 0.4910447761 | BJ25: 297 | BK25: 638 | BL25: 0.4655172414 | BM25: 27 | BN25: 84 | BO25: 0.3214285714 | BP25: 45 | BQ25: 156 | BR25: 0.2884615385 | BS25: 90 | BT25: 245 | BU25: 0.3673469388 | BV25: 95 | BW25: 234 | BX25: 0.405982906
A26: 17 | B26: Deep East Texas | C26: 503 | D26: Angelina College | E26: 101 | F26: 270 | G26: 0.3740740741 | H26: 139 | I26: 351 | J26: 0.396011396 | K26: 120 | L26: 307 | M26: 0.3908794788 | N26: 120 | O26: 301 | P26: 0.3986710963 | Q26: 128 | R26: 352 | S26: 0.3636363636 | T26: 181 | U26: 468 | V26: 0.3867521368 | W26: 202 | X26: 547 | Y26: 0.3692870201 | Z26: 203 | AA26: 580 | AB26: 0.35 | AC26: 170 | AD26: 508 | AE26: 0.3346456693 | AF26: 194 | AG26: 558 | AH26: 0.3476702509 | AI26: 178 | AJ26: 591 | AK26: 0.3011844332 | AL26: 186 | AM26: 644 | AN26: 0.2888198758 | AO26: 146 | AP26: 477 | AQ26: 0.3060796646 | AR26: 173 | AS26: 555 | AT26: 0.3117117117 | AU26: 166 | AV26: 525 | AW26: 0.3161904762 | AX26: 174 | AY26: 582 | AZ26: 0.2989690722 | BA26: 174 | BB26: 599 | BC26: 0.2904841402 | BD26: 190 | BE26: 633 | BF26: 0.3001579779 | BG26: 173 | BH26: 544 | BI26: 0.3180147059 | BJ26: 195 | BK26: 551 | BL26: 0.3539019964 | BM26: 163 | BN26: 402 | BO26: 0.4054726368 | BP26: 181 | BQ26: 461 | BR26: =BP26/BQ26 -> 0.3926247289 | BS26: 175 | BT26: 367 | BU26: 0.4768392371 | BV26: 178 | BW26: 404 | BX26: 0.4405940594
A27: 18 | B27: Southeast Texas | C27: 527 | D27: Region 5 ESC | E27: 22 | F27: 131 | G27: 0.1679389313 | H27: 17 | I27: 158 | J27: 0.1075949367 | K27: 11 | L27: 92 | M27: 0.1195652174 | N27: 14 | O27: 97 | P27: 0.1443298969 | Q27: 26 | R27: 158 | S27: 0.164556962 | T27: 132 | U27: 379 | V27: 0.3482849604 | W27: 129 | X27: 425 | Y27: 0.3035294118 | Z27: 151 | AA27: 478 | AB27: 0.3158995816 | AC27: 174 | AD27: 467 | AE27: 0.3725910064 | AF27: 215 | AG27: 540 | AH27: 0.3981481481 | AI27: 193 | AJ27: 526 | AK27: 0.3669201521 | AL27: 197 | AM27: 520 | AN27: 0.3788461538 | AO27: 216 | AP27: 540 | AQ27: 0.4 | AR27: 296 | AS27: 628 | AT27: 0.4713375796 | AU27: 291 | AV27: 615 | AW27: 0.4731707317 | AX27: 280 | AY27: 642 | AZ27: 0.4361370717 | BA27: 129 | BB27: 317 | BC27: 0.4069400631 | BD27: 238 | BE27: 546 | BF27: 0.4358974359 | BG27: 212 | BH27: 466 | BI27: 0.4549356223 | BJ27: 244 | BK27: 543 | BL27: 0.4493554328 | BM27: 274 | BN27: 503 | BO27: 0.5447316103 | BP27: 353 | BQ27: 732 | BR27: 0.4822404372 | BS27: 273 | BT27: 555 | BU27: 0.4918918919 | BV27: 316 | BW27: 611 | BX27: 0.5171849427
A28: 19 | B28: Golden Crescent | C28: 532 | D28: Victoria College | E28: 57 | F28: 212 | G28: 0.2688679245 | H28: 90 | I28: 300 | J28: 0.3 | K28: 90 | L28: 289 | M28: 0.3114186851 | N28: 95 | O28: 308 | P28: 0.3084415584 | Q28: 41 | R28: 196 | S28: 0.2091836735 | T28: 81 | U28: 336 | V28: 0.2410714286 | W28: 98 | X28: 404 | Y28: 0.2425742574 | Z28: 133 | AA28: 432 | AB28: 0.3078703704 | AC28: 57 | AD28: 266 | AE28: 0.2142857143 | AF28: 102 | AG28: 496 | AH28: 0.2056451613 | AI28: 145 | AJ28: 574 | AK28: 0.2526132404 | AL28: 132 | AM28: 507 | AN28: 0.2603550296 | AO28: 43 | AP28: 245 | AQ28: 0.1755102041 | AR28: 90 | AS28: 416 | AT28: 0.2163461538 | AU28: 92 | AV28: 474 | AW28: 0.194092827 | AX28: 94 | AY28: 535 | AZ28: 0.1757009346 | BA28: 15 | BB28: 171 | BC28: 0.08771929825 | BD28: 34 | BE28: 320 | BF28: 0.10625 | BG28: 54 | BH28: 386 | BI28: 0.1398963731 | BJ28: 59 | BK28: 475 | BL28: 0.1242105263 | BM28: 48 | BN28: 323 | BO28: 0.1486068111 | BP28: 81 | BQ28: 468 | BR28: 0.1730769231 | BS28: 87 | BT28: 441 | BU28: 0.1972789116 | BV28: 94 | BW28: 466 | BX28: 0.2017167382
A29: 20 | B29: Alamo | C29: 512 | D29: Region 20 ESC | E29: 878 | F29: 2303 | G29: 0.3812418584 | H29: 1484 | I29: 3636 | J29: 0.4081408141 | K29: 1434 | L29: 3303 | M29: 0.434150772 | N29: 1215 | O29: 2854 | P29: 0.4257182901 | Q29: 735 | R29: 1845 | S29: 0.3983739837 | T29: 1655 | U29: 4165 | V29: 0.3973589436 | W29: 1745 | X29: 4549 | Y29: 0.3836007914 | Z29: 1459 | AA29: 3976 | AB29: 0.3669517103 | AC29: 1116 | AD29: 2987 | AE29: 0.3736190157 | AF29: 1854 | AG29: 4736 | AH29: 0.3914695946 | AI29: 1903 | AJ29: 4698 | AK29: 0.4050659855 | AL29: 1482 | AM29: 3747 | AN29: 0.3955164131 | AO29: 1236 | AP29: 2670 | AQ29: 0.4629213483 | AR29: 1866 | AS29: 4089 | AT29: 0.4563462949 | AU29: 1907 | AV29: 4315 | AW29: 0.4419466976 | AX29: 1615 | AY29: 3637 | AZ29: 0.4440472917 | BA29: 997 | BB29: 2286 | BC29: 0.4361329834 | BD29: 1843 | BE29: 3771 | BF29: 0.4887297799 | BG29: 1849 | BH29: 3863 | BI29: 0.4786435413 | BJ29: 1762 | BK29: 3821 | BL29: 0.4611358283 | BM29: 1376 | BN29: 2882 | BO29: 0.4774462179 | BP29: 1839 | BQ29: 3792 | BR29: 0.4849683544 | BS29: 2000 | BT29: 3845 | BU29: 0.5201560468 | BV29: 1951 | BW29: 3745 | BX29: 0.5209612817
A30: 21 | B30: South Texas | C30: 518 | D30: Laredo College | E30: 201 | F30: 743 | G30: 0.2705248991 | H30: 201 | I30: 736 | J30: 0.2730978261 | K30: 232 | L30: 808 | M30: 0.2871287129 | N30: 199 | O30: 684 | P30: 0.2909356725 | Q30: 234 | R30: 792 | S30: 0.2954545455 | T30: 233 | U30: 825 | V30: 0.2824242424 | W30: 283 | X30: 978 | Y30: 0.2893660532 | Z30: 301 | AA30: 999 | AB30: 0.3013013013 | AC30: 435 | AD30: 1235 | AE30: 0.3522267206 | AF30: 435 | AG30: 1195 | AH30: 0.3640167364 | AI30: 474 | AJ30: 1348 | AK30: 0.3516320475 | AL30: 377 | AM30: 1052 | AN30: 0.358365019 | AO30: 336 | AP30: 965 | AQ30: 0.3481865285 | AR30: 326 | AS30: 920 | AT30: 0.3543478261 | AU30: 311 | AV30: 851 | AW30: 0.3654524089 | AX30: 292 | AY30: 938 | AZ30: 0.3113006397 | BA30: 277 | BB30: 994 | BC30: 0.2786720322 | BD30: 280 | BE30: 975 | BF30: 0.2871794872 | BG30: 279 | BH30: 946 | BI30: 0.2949260042 | BJ30: 265 | BK30: 840 | BL30: 0.3154761905 | BM30: 308 | BN30: 964 | BO30: 0.3195020747 | BP30: 350 | BQ30: 993 | BR30: 0.3524672709 | BS30: 326 | BT30: 911 | BU30: 0.3578485181 | BV30: 281 | BW30: 802 | BX30: 0.3503740648
A31: 22 | B31: Coastal Bend | C31: 542 | D31: Region 2 ESC | E31: 0 | F31: 134 | G31: 0 | H31: 1 | I31: 175 | J31: 0.005714285714 | K31: 2 | L31: 142 | M31: 0.01408450704 | N31: 1 | O31: 123 | P31: 0.008130081301 | Q31: 98 | R31: 596 | S31: 0.1644295302 | T31: 110 | U31: 896 | V31: 0.1227678571 | W31: 113 | X31: 1062 | Y31: 0.1064030132 | Z31: 121 | AA31: 1158 | AB31: 0.1044905009 | AC31: 123 | AD31: 902 | AE31: 0.1363636364 | AF31: 162 | AG31: 1266 | AH31: 0.1279620853 | AI31: 183 | AJ31: 1432 | AK31: 0.1277932961 | AL31: 168 | AM31: 1253 | AN31: 0.1340782123 | AO31: 145 | AP31: 929 | AQ31: 0.1560818084 | AR31: 179 | AS31: 1023 | AT31: 0.1749755621 | AU31: 169 | AV31: 1114 | AW31: 0.1517055655 | AX31: 124 | AY31: 984 | AZ31: 0.1260162602 | BA31: 78 | BB31: 698 | BC31: 0.111747851 | BD31: 99 | BE31: 927 | BF31: 0.1067961165 | BG31: 105 | BH31: 988 | BI31: 0.1062753036 | BJ31: 120 | BK31: 1053 | BL31: 0.113960114 | BM31: 53 | BN31: 139 | BO31: 0.381294964 | BP31: 74 | BQ31: 425 | BR31: 0.1741176471 | BS31: 140 | BT31: 664 | BU31: 0.2108433735 | BV31: 219 | BW31: 836 | BX31: 0.2619617225
A32: 23 | B32: Lower Rio | C32: 524 | D32: Region 1 ESC | E32: 311 | F32: 959 | G32: 0.3242961418 | H32: 474 | I32: 1407 | J32: 0.3368869936 | K32: 487 | L32: 1348 | M32: 0.3612759644 | N32: 412 | O32: 1095 | P32: 0.3762557078 | Q32: 605 | R32: 1498 | S32: 0.4038718291 | T32: 1010 | U32: 2338 | V32: 0.4319931565 | W32: 1231 | X32: 2769 | Y32: 0.4445648248 | Z32: 1083 | AA32: 2298 | AB32: 0.4712793734 | AC32: 924 | AD32: 1945 | AE32: 0.4750642674 | AF32: 1404 | AG32: 3041 | AH32: 0.4616902335 | AI32: 1397 | AJ32: 3244 | AK32: 0.4306411837 | AL32: 1170 | AM32: 2785 | AN32: 0.4201077199 | AO32: 1083 | AP32: 2418 | AQ32: 0.4478908189 | AR32: 1306 | AS32: 2914 | AT32: 0.4481811942 | AU32: 1292 | AV32: 3043 | AW32: 0.4245810056 | AX32: 1075 | AY32: 2706 | AZ32: 0.3972653363 | BA32: 886 | BB32: 2284 | BC32: 0.387915937 | BD32: 1191 | BE32: 2971 | BF32: 0.4008751262 | BG32: 1114 | BH32: 2756 | BI32: 0.4042089985 | BJ32: 962 | BK32: 2430 | BL32: 0.3958847737 | BM32: 761 | BN32: 1837 | BO32: 0.4142623843 | BP32: 1057 | BQ32: 2595 | BR32: 0.4073217726 | BS32: 1045 | BT32: 2593 | BU32: 0.4030080987 | BV32: 899 | BW32: 2295 | BX32: 0.3917211329
A33: 24 | B33: Cameron County | C33: 506 | D33: Brownsville ISD | E33: 266 | F33: 796 | G33: 0.3341708543 | H33: 281 | I33: 854 | J33: 0.3290398126 | K33: 306 | L33: 909 | M33: 0.3366336634 | N33: 236 | O33: 671 | P33: 0.3517138599 | Q33: 249 | R33: 671 | S33: 0.3710879285 | T33: 371 | U33: 963 | V33: 0.3852544133 | W33: 509 | X33: 1281 | Y33: 0.3973458236 | Z33: 450 | AA33: 1118 | AB33: 0.4025044723 | AC33: 461 | AD33: 1087 | AE33: 0.4241030359 | AF33: 615 | AG33: 1505 | AH33: 0.4086378738 | AI33: 630 | AJ33: 1569 | AK33: 0.4015296367 | AL33: 518 | AM33: 1269 | AN33: 0.4081954295 | AO33: 430 | AP33: 961 | AQ33: 0.4474505723 | AR33: 640 | AS33: 1437 | AT33: 0.4453723034 | AU33: 578 | AV33: 1480 | AW33: 0.3905405405 | AX33: 444 | AY33: 1212 | AZ33: 0.3663366337 | BA33: 394 | BB33: 978 | BC33: 0.4028629857 | BD33: 517 | BE33: 1374 | BF33: 0.3762736536 | BG33: 461 | BH33: 1354 | BI33: 0.3404726736 | BJ33: 353 | BK33: 1107 | BL33: 0.3188798555 | BM33: 295 | BN33: 920 | BO33: 0.3206521739 | BP33: 359 | BQ33: 1203 | BR33: 0.2984206151 | BS33: 331 | BT33: 1105 | BU33: 0.2995475113 | BV33: 309 | BW33: 1060 | BX33: 0.291509434
A34: 25 | B34: Texoma | C34: 514 | D34: Grayson College | E34: 55 | F34: 145 | G34: 0.3793103448 | H34: 80 | I34: 178 | J34: 0.4494382022 | K34: 84 | L34: 185 | M34: 0.4540540541 | N34: 79 | O34: 177 | P34: 0.4463276836 | Q34: 78 | R34: 191 | S34: 0.4083769634 | T34: 105 | U34: 236 | V34: 0.4449152542 | W34: 100 | X34: 243 | Y34: 0.4115226337 | Z34: 109 | AA34: 264 | AB34: 0.4128787879 | AC34: 114 | AD34: 261 | AE34: 0.4367816092 | AF34: 159 | AG34: 324 | AH34: 0.4907407407 | AI34: 205 | AJ34: 390 | AK34: 0.5256410256 | AL34: 227 | AM34: 438 | AN34: 0.5182648402 | AO34: 132 | AP34: 284 | AQ34: 0.4647887324 | AR34: 176 | AS34: 359 | AT34: 0.4902506964 | AU34: 144 | AV34: 393 | AW34: 0.3664122137 | AX34: 153 | AY34: 390 | AZ34: 0.3923076923 | BA34: 127 | BB34: 338 | BC34: 0.375739645 | BD34: 112 | BE34: 355 | BF34: 0.3154929577 | BG34: 100 | BH34: 282 | BI34: 0.3546099291 | BJ34: 109 | BK34: 299 | BL34: 0.364548495 | BM34: 88 | BN34: 273 | BO34: 0.3223443223 | BP34: 72 | BQ34: 281 | BR34: 0.256227758 | BS34: 87 | BT34: 306 | BU34: 0.2843137255 | BV34: 103 | BW34: 333 | BX34: 0.3093093093
A35: 26 | B35: Central Texas | C35: 534 | D35: Central Texas College | E35: 44 | F35: 299 | G35: 0.1471571906 | H35: 66 | I35: 370 | J35: 0.1783783784 | K35: 70 | L35: 370 | M35: 0.1891891892 | N35: 56 | O35: 316 | P35: 0.1772151899 | Q35: 19 | R35: 223 | S35: 0.08520179372 | T35: 17 | U35: 124 | V35: 0.1370967742 | W35: 19 | X35: 136 | Y35: 0.1397058824 | Z35: 23 | AA35: 130 | AB35: 0.1769230769 | AC35: 0 | AD35: 36 | AE35: 0 | AF35: 5 | AG35: 105 | AH35: 0.04761904762 | AI35: 11 | AJ35: 88 | AK35: 0.125 | AL35: 12 | AM35: 121 | AN35: 0.09917355372 | AO35: 9 | AP35: 77 | AQ35: 0.1168831169 | AR35: 19 | AS35: 164 | AT35: 0.1158536585 | AU35: 15 | AV35: 215 | AW35: 0.06976744186 | AX35: 12 | AY35: 238 | AZ35: 0.05042016807 | BA35: 10 | BB35: 177 | BC35: 0.05649717514 | BD35: 12 | BE35: 185 | BF35: 0.06486486486 | BG35: 14 | BH35: 213 | BI35: 0.06572769953 | BJ35: 17 | BK35: 238 | BL35: 0.07142857143 | BM35: 2 | BN35: 30 | BO35: 0.06666666667 | BP35: 1 | BQ35: 42 | BR35: 0.02380952381 | BS35: 1 | BT35: 53 | BU35: 0.01886792453 | BV35: 3 | BW35: 55 | BX35: 0.05454545455
A36: 26 | B36: Central Texas | C36: 535 | D36: Temple College | E36: 36 | F36: 138 | G36: 0.2608695652 | H36: 41 | I36: 197 | J36: 0.2081218274 | K36: 42 | L36: 174 | M36: 0.2413793103 | N36: 30 | O36: 155 | P36: 0.1935483871 | Q36: 68 | R36: 305 | S36: 0.2229508197 | T36: 52 | U36: 346 | V36: 0.1502890173 | W36: 55 | X36: 384 | Y36: 0.1432291667 | Z36: 45 | AA36: 385 | AB36: 0.1168831169 | AC36: 37 | AD36: 312 | AE36: 0.1185897436 | AF36: 34 | AG36: 346 | AH36: 0.09826589595 | AI36: 34 | AJ36: 359 | AK36: 0.09470752089 | AL36: 32 | AM36: 364 | AN36: 0.08791208791 | AO36: 112 | AP36: 441 | AQ36: 0.253968254 | AR36: 128 | AS36: 507 | AT36: 0.2524654832 | AU36: 141 | AV36: 596 | AW36: 0.2365771812 | AX36: 107 | AY36: 523 | AZ36: 0.2045889101 | BA36: 124 | BB36: 547 | BC36: 0.226691042 | BD36: 144 | BE36: 655 | BF36: 0.2198473282 | BG36: 148 | BH36: 630 | BI36: 0.2349206349 | BJ36: 100 | BK36: 514 | BL36: 0.1945525292 | BM36: 88 | BN36: 588 | BO36: 0.1496598639 | BP36: 95 | BQ36: 695 | BR36: 0.1366906475 | BS36: 95 | BT36: 687 | BU36: 0.1382823872 | BV36: 79 | BW36: 661 | BX36: 0.119515885
A37: 27 | B37: Middle Rio | C37: 530 | D37: Southwest Texas Junior College | E37: 12 | F37: 379 | G37: 0.03166226913 | H37: 15 | I37: 482 | J37: 0.03112033195 | K37: 16 | L37: 413 | M37: 0.0387409201 | N37: 17 | O37: 368 | P37: 0.04619565217 | Q37: 15 | R37: 345 | S37: 0.04347826087 | T37: 11 | U37: 366 | V37: 0.03005464481 | W37: 11 | X37: 410 | Y37: 0.02682926829 | Z37: 13 | AA37: 486 | AB37: 0.02674897119 | AC37: 21 | AD37: 472 | AE37: 0.04449152542 | AF37: 24 | AG37: 534 | AH37: 0.04494382022 | AI37: 22 | AJ37: 546 | AK37: 0.04029304029 | AL37: 18 | AM37: 513 | AN37: 0.0350877193 | AO37: 8 | AP37: 457 | AQ37: 0.01750547046 | AR37: 16 | AS37: 565 | AT37: 0.02831858407 | AU37: 13 | AV37: 536 | AW37: 0.02425373134 | AX37: 14 | AY37: 523 | AZ37: 0.02676864245 | BA37: 12 | BB37: 463 | BC37: 0.02591792657 | BD37: 13 | BE37: 487 | BF37: 0.02669404517 | BG37: 15 | BH37: 446 | BI37: 0.033632287 | BJ37: 11 | BK37: 441 | BL37: 0.02494331066 | BM37: 9 | BN37: 356 | BO37: 0.02528089888 | BP37: 13 | BQ37: 465 | BR37: 0.02795698925 | BS37: 17 | BT37: 462 | BU37: 0.0367965368 | BV37: 13 | BW37: 401 | BX37: 0.03241895262
A38: 28 | B38: Gulf Coast | C38: 515 | D38: Houston-Galveston Area Council | E38: 6215 | F38: 11859 | G38: 0.5240745425 | H38: 6596 | I38: 12449 | J38: 0.5298417544 | K38: 6670 | L38: 12366 | M38: 0.5393821769 | N38: 5711 | O38: 10746 | P38: 0.5314535641 | Q38: 4343 | R38: 8578 | S38: 0.5062951737 | T38: 4398 | U38: 8442 | V38: 0.5209665956 | W38: 5283 | X38: 9806 | Y38: 0.5387517846 | Z38: 5195 | AA38: 9970 | AB38: 0.5210631896 | AC38: 4335 | AD38: 9186 | AE38: 0.4719137818 | AF38: 4899 | AG38: 9845 | AH38: 0.4976130015 | AI38: 5423 | AJ38: 10685 | AK38: 0.5075339261 | AL38: 4964 | AM38: 9835 | AN38: 0.5047280122 | AO38: 4766 | AP38: 10064 | AQ38: 0.4735691574 | AR38: 5185 | AS38: 10923 | AT38: 0.4746864415 | AU38: 4717 | AV38: 10209 | AW38: 0.4620432951 | AX38: 4098 | AY38: 9310 | AZ38: 0.4401718582 | BA38: 3390 | BB38: 7805 | BC38: 0.4343369635 | BD38: 4035 | BE38: 8853 | BF38: 0.4557777025 | BG38: 4338 | BH38: 9658 | BI38: 0.449161317 | BJ38: 4542 | BK38: 10171 | BL38: 0.4465637597 | BM38: 3554 | BN38: 8172 | BO38: 0.4348996574 | BP38: 4060 | BQ38: 9168 | BR38: 0.4428446771 | BS38: 4156 | BT38: 9276 | BU38: 0.4480379474 | BV38: 4035 | BW38: 9330 | BX38: 0.4324758842
D39: Orphan Grantees | E39: 446 | F39: 1509 | G39: 0.2955599735 | H39: 625 | I39: 2187 | J39: 0.2857796068 | K39: 514 | L39: 1720 | M39: 0.2988372093 | N39: 399 | O39: 1412 | P39: 0.2825779037 | Q39: 14 | R39: 35 | S39: 0.4 | T39: 17 | U39: 54 | V39: 0.3148148148 | W39: 16 | X39: 56 | Y39: 0.2857142857 | Z39: 18 | AA39: 56 | AB39: 0.3214285714 | AC39: 13 | AD39: 47 | AE39: 0.2765957447 | AF39: 15 | AG39: 51 | AH39: 0.2941176471 | AI39: 17 | AJ39: 53 | AK39: 0.320754717 | AL39: 20 | AM39: 52 | AN39: 0.3846153846 | AO39: 12 | AP39: 38 | AQ39: 0.3157894737 | AR39: 19 | AS39: 60 | AT39: 0.3166666667 | AU39: 20 | AV39: 75 | AW39: 0.2666666667 | AX39: 14 | AY39: 70 | AZ39: 0.2 | BA39: 5 | BB39: 39 | BC39: 0.1282051282 | BD39: 10 | BE39: 53 | BF39: 0.1886792453 | BG39: 5 | BH39: 50 | BI39: 0.1 | BJ39: 7 | BK39: 54 | BL39: 0.1296296296 | BO39: NA | BR39: NA | BU39: NA | BX39: NA
B40: Statewide | D40: Statewide | E40: 14936 | F40: 33908 | G40: =E40/F40 -> 0.440486021 | H40: 18648 | I40: 41795 | J40: =H40/I40 -> 0.4461777725 | K40: 18829 | L40: 40327 | M40: =K40/L40 -> 0.4669080269 | N40: 15997 | O40: 35133 | P40: =N40/O40 -> 0.4553269006 | Q40: 11945 | R40: 28365 | S40: =Q40/R40 -> 0.4211175745 | T40: 16134 | U40: 37325 | V40: =T40/U40 -> 0.4322572003 | W40: 17802 | X40: 41474 | Y40: =W40/X40 -> 0.4292327723 | Z40: 16180 | AA40: 39167 | AB40: =Z40/AA40 -> 0.4131028672 | AC40: 13364 | AD40: 33994 | AE40: =AC40/AD40 -> 0.3931281991 | AF40: 18760 | AG40: 44573 | AH40: =AF40/AG40 -> 0.4208825971 | AI40: 20225 | AJ40: 47846 | AK40: =AI40/AJ40 -> 0.4227103624 | AL40: 17601 | AM40: 42263 | AN40: =AL40/AM40 -> 0.4164635733 | AO40: 14286 | AP40: 34923 | AQ40: =AO40/AP40 -> 0.4090713856 | AR40: 20251 | AS40: 45774 | AT40: =AR40/AS40 -> 0.4424127234 | AU40: 19968 | AV40: 46247 | AW40: =AU40/AV40 -> 0.4317685471 | AX40: 17902 | AY40: 43011 | AZ40: =AX40/AY40 -> 0.4162191067 | BA40: 13298 | BB40: 34165 | BC40: =BA40/BB40 -> 0.3892287429 | BD40: 18518 | BE40: 44059 | BF40: =BD40/BE40 -> 0.4203000522 | BG40: 18335 | BH40: 44190 | BI40: =BG40/BH40 -> 0.4149128762 | BJ40: 17995 | BK40: 43644 | BL40: =BJ40/BK40 -> 0.4123132618 | BM40: 13325 | BN40: 32918 | BO40: =BM40/BN40 -> 0.4047937299 | BP40: 18031 | BQ40: 42500 | BR40: =BP40/BQ40 -> 0.4242588235 | BS40: 18354 | BT40: 42284 | BU40: 0.4340648945 | BV40: 18056 | BW40: 42057 | BX40: =BV40/BW40 -> 0.4293221105
A41: Funds include: 1,3,5,8,17,18,19,20,21,23,24,26,27,28,29,30,31,33,34,35,36,37,40,43,44,45,46,47,48,49,50,52,53,54,55,56 Total: Total participants for quarterly period described Missing SSN: Number of participants having an invalid/missing SSN as described by the Social Security Administration. Rate: Rate of Invalid participants to Total Participants.

Sheet Participants - PY
E1: PY13 (Jul13 - Jun14) | H1: PY14 (Jul14 - Jun15) | K1: PY15 (Jul15 - Jun16) | N1: PY16 (Jul16 - Jun17) | Q1: PY17 (Jul17 - Jun18) | T1: PY18 (Jul18 - Jun19)
A2: WDA # | B2: WDA Name | C2: Grantee # | D2: Grantee Name | E2: Missing SSN | F2: Total Participants | G2: Rate | H2: Missing SSN | I2: Total Participants | J2: Rate | K2: Missing SSN | L2: Total Participants | M2: Rate | N2: Missing SSN | O2: Total Participants | P2: Rate | Q2: Missing SSN | R2: Total Participants | S2: Rate | T2: Missing SSN | U2: Total Participants | V2: Rate
A3: 1 | B3: Panhandle | C3: 502 | D3: Amarillo College | E3: 68 | F3: 475 | G3: =E3/F3 -> 0.1431578947 | H3: 213 | I3: 957 | J3: =H3/I3 -> 0.2225705329 | K3: 514 | L3: 1603 | M3: =K3/L3 -> 0.3206487835 | N3: 486 | O3: 1351 | P3: =N3/O3 -> 0.3597335307 | Q3: 372 | R3: 1502 | S3: =Q3/R3 -> 0.2476697736 | T3: 349 | U3: 1348 | V3: =T3/U3 -> 0.2589020772
A4: 2 | B4: South Plains | C4: 526 | D4: Region 17 ESC, South Plains | E4: 71 | F4: 279 | G4: =E4/F4 -> 0.2544802867 | H4: 242 | I4: 867 | J4: =H4/I4 -> 0.2791234141 | K4: 208 | L4: 886 | M4: =K4/L4 -> 0.2347629797 | N4: 207 | O4: 1001 | P4: =N4/O4 -> 0.2067932068 | Q4: 180 | R4: 849 | S4: =Q4/R4 -> 0.2120141343 | T4: 200 | U4: 894 | V4: =T4/U4 -> 0.2237136465
A5: 3 | B5: North Texas | C5: 528 | D5: Region 9 ESC | E5: 147 | F5: 480 | G5: 0.30625 | H5: 194 | I5: 580 | J5: 0.3344827586 | K5: 193 | L5: 548 | M5: 0.352189781 | N5: 163 | O5: 582 | P5: 0.2800687285 | Q5: 138 | R5: 582 | S5: 0.2371134021 | T5: 143 | U5: 529 | V5: 0.2703213611
A6: 4 | B6: North Central | C6: 533 | D6: Weatherford ISD | E6: 93 | F6: 228 | G6: 0.4078947368 | H6: 143 | I6: 328 | J6: 0.4359756098 | K6: 156 | L6: 366 | M6: 0.4262295082 | N6: 121 | O6: 295 | P6: 0.4101694915 | Q6: 135 | R6: 315 | S6: 0.4285714286 | T6: 165 | U6: 414 | V6: 0.3985507246
A7: 4 | B7: North Central | C7: 536 | D7: Denton ISD | E7: 871 | F7: 1404 | G7: 0.6203703704 | H7: 1235 | I7: 1935 | J7: 0.6382428941 | K7: 1754 | L7: 2697 | M7: 0.6503522432 | N7: 1556 | O7: 2449 | P7: 0.635361372 | Q7: 1794 | R7: 2603 | S7: 0.6892047637 | T7: 2249 | U7: 3128 | V7: 0.7189897698
A8: 4 | B8: North Central | C8: 540 | D8: Navarro College | E8: 144 | F8: 438 | G8: 0.3287671233 | H8: 164 | I8: 529 | J8: 0.3100189036 | K8: 210 | L8: 552 | M8: 0.3804347826 | N8: 207 | O8: 652 | P8: 0.3174846626 | Q8: 168 | R8: 710 | S8: 0.2366197183 | T8: 175 | U8: 729 | V8: 0.2400548697
A9: 4 | B9: North Central | C9: 541 | D9: Paris Jr College - North Central | G9: NA | H9: 40 | I9: 70 | J9: 0.5714285714 | K9: 56 | L9: 132 | M9: 0.4242424242 | N9: 47 | O9: 151 | P9: 0.3112582781 | Q9: 43 | R9: 157 | S9: 0.2738853503 | T9: 24 | U9: 118 | V9: 0.2033898305
A10: 5 | B10: Tarrant County | C10: 538 | D10: Tarrant County WDB | E10: 1592 | F10: 3151 | G10: 0.5052364329 | H10: 2482 | I10: 4414 | J10: 0.5623017671 | K10: 2746 | L10: 4697 | M10: 0.5846284863 | N10: 2985 | O10: 4741 | P10: 0.6296140055 | Q10: 2690 | R10: 4901 | S10: 0.548867578 | T10: 2750 | U10: 5027 | V10: 0.5470459519
A11: 6 | B11: Dallas County | C11: 509 | D11: Dallas County LDB | E11: 3442 | F11: 5181 | G11: 0.6643505115 | H11: 2157 | I11: 4207 | J11: 0.5127169004 | K11: 3269 | L11: 7376 | M11: 0.4431941432 | N11: 5148 | O11: 8703 | P11: 0.5915201655 | Q11: 5579 | R11: 9197 | S11: 0.6066108514 | T11: 5594 | U11: 8496 | V11: 0.6584274953
A12: 7 | B12: North East Texas | C12: 523 | D12: Paris Junior College, Northeast Texas | E12: 188 | F12: 544 | G12: 0.3455882353 | H12: 126 | I12: 435 | J12: 0.2896551724 | K12: 158 | L12: 468 | M12: 0.3376068376 | N12: 160 | O12: 441 | P12: 0.3628117914 | Q12: 175 | R12: 515 | S12: 0.3398058252 | T12: 178 | U12: 489 | V12: 0.36400818
A13: 7 | B13: North East Texas | C13: 543 | D13: Texarkana College | E13: 318 | F13: 729 | G13: 0.4362139918 | H13: 27 | I13: 391 | J13: 0.06905370844 | K13: 38 | L13: 390 | M13: 0.09743589744 | N13: 27 | O13: 405 | P13: 0.06666666667 | Q13: 27 | R13: 332 | S13: 0.0813253012 | T13: 55 | U13: 310 | V13: 0.1774193548
A14: 8 | B14: East Texas | C14: 519 | D14: Literacy Council of Tyler | E14: 969 | F14: 2667 | G14: 0.3633295838 | H14: 1112 | I14: 2820 | J14: 0.3943262411 | K14: 1084 | L14: 2960 | M14: 0.3662162162 | N14: 1029 | O14: 2784 | P14: 0.369612069 | Q14: 1058 | R14: 2640 | S14: 0.4007575758 | T14: 1050 | U14: 2498 | V14: 0.420336269
A15: 9 | B15: West Central | C15: 501 | D15: Abilene ISD | E15: 32 | F15: 465 | G15: 0.0688172043 | H15: 73 | I15: 773 | J15: 0.09443725744 | K15: 42 | L15: 655 | M15: 0.0641221374 | N15: 99 | O15: 913 | P15: 0.1084337349 | Q15: 108 | R15: 905 | S15: 0.1193370166 | T15: 117 | U15: 853 | V15: 0.1371629543
A16: 10 | B16: Borderplex | C16: 544 | D16: Ysleta ISD | E16: 755 | F16: 3542 | G16: 0.2131564088 | H16: 600 | I16: 3281 | J16: 0.1828710759 | K16: 502 | L16: 3101 | M16: 0.1618832635 | N16: 444 | O16: 3172 | P16: 0.1399747793 | Q16: 317 | R16: 3156 | S16: 0.1004435995 | T16: 312 | U16: 3057 | V16: 0.102060844
A17: 11 | B17: Permian Basin | C17: 517 | D17: Howard College, Permian Basin | E17: 137 | F17: 247 | G17: 0.5546558704 | H17: 127 | I17: 223 | J17: 0.5695067265 | K17: 103 | L17: 240 | M17: 0.4291666667 | N17: 96 | O17: 213 | P17: 0.4507042254 | Q17: 145 | R17: 253 | S17: 0.5731225296 | T17: 240 | U17: 332 | V17: 0.7228915663
A18: 11 | B18: Permian Basin | C18: 525 | D18: Region 17 ESC, Permian Basin | E18: 20 | F18: 61 | G18: 0.3278688525 | H18: 68 | I18: 162 | J18: 0.4197530864 | K18: 58 | L18: 144 | M18: 0.4027777778 | N18: 56 | O18: 133 | P18: 0.4210526316 | Q18: 63 | R18: 141 | S18: 0.4468085106 | T18: 72 | U18: 138 | V18: 0.5217391304
A19: 11 | B19: Permian Basin | C19: 539 | D19: Midland College | E19: 125 | F19: 555 | G19: 0.2252252252 | H19: 200 | I19: 857 | J19: 0.2333722287 | K19: 278 | L19: 968 | M19: 0.2871900826 | N19: 247 | O19: 1012 | P19: 0.2440711462 | Q19: 219 | R19: 870 | S19: 0.2517241379 | T19: 185 | U19: 881 | V19: 0.2099886493
A20: 11 | B20: Permian Basin | C20: 545 | D20: Odessa College | E20: 202 | F20: 760 | G20: 0.2657894737 | H20: 208 | I20: 896 | J20: 0.2321428571 | K20: 204 | L20: 1037 | M20: 0.1967213115 | N20: 224 | O20: 1109 | P20: 0.2019837692 | Q20: 221 | R20: 1030 | S20: 0.2145631068 | T20: 216 | U20: 977 | V20: 0.2210849539
A21: 12 | B21: Concho Valley | C21: 516 | D21: Howard College, Concho Valley | E21: 239 | F21: 670 | G21: 0.3567164179 | H21: 214 | I21: 507 | J21: 0.4220907298 | K21: 277 | L21: 711 | M21: 0.3895921238 | N21: 148 | O21: 588 | P21: 0.2517006803 | Q21: 20 | R21: 572 | S21: 0.03496503497 | T21: 28 | U21: 555 | V21: 0.05045045045
A22: 13 | B22: Heart of Texas | C22: 520 | D22: McLennan Community College | E22: 494 | F22: 1615 | G22: 0.3058823529 | H22: 432 | I22: 1236 | J22: 0.3495145631 | K22: 408 | L22: 1149 | M22: 0.3550913838 | N22: 368 | O22: 1078 | P22: 0.3413729128 | Q22: 362 | R22: 1100 | S22: 0.3290909091 | T22: 249 | U22: 941 | V22: 0.2646121148
A23: 14 | B23: Capital Area | C23: 504 | D23: Austin Community College | E23: 1398 | F23: 2946 | G23: 0.4745417515 | H23: 1507 | I23: 3089 | J23: 0.4878601489 | K23: 1716 | L23: 3866 | M23: 0.4438696327 | N23: 1912 | O23: 4181 | P23: 0.4573068644 | Q23: 1746 | R23: 4232 | S23: 0.4125708885 | T23: 1656 | U23: 4440 | V23: 0.372972973
A24: 15 | B24: Rural Capital | C24: 508 | D24: Community Action Inc. | E24: 287 | F24: 859 | G24: 0.3341094296 | H24: 323 | I24: 942 | J24: 0.3428874735 | K24: 422 | L24: 1165 | M24: 0.3622317597 | N24: 771 | O24: 1625 | P24: 0.4744615385 | Q24: 864 | R24: 2129 | S24: 0.4058243307 | T24: 882 | U24: 2417 | V24: 0.3649151841
A25: 16 | B25: Brazos Valley | C25: 505 | D25: Brazos Valley COG | E25: 1178 | F25: 2319 | G25: 0.5079775765 | H25: 634 | I25: 1313 | J25: 0.482863671 | K25: 482 | L25: 1154 | M25: 0.417677643 | N25: 465 | O25: 1024 | P25: 0.4541015625 | Q25: 560 | R25: 1228 | S25: 0.4560260586 | T25: 140 | U25: 402 | V25: 0.3482587065
A26: 17 | B26: Deep East Texas | C26: 503 | D26: Angelina College | E26: 188 | F26: 554 | G26: 0.3393501805 | H26: 306 | I26: 972 | J26: 0.3148148148 | K26: 329 | L26: 1160 | M26: 0.2836206897 | N26: 302 | O26: 998 | P26: 0.3026052104 | Q26: 345 | R26: 1141 | S26: 0.3023663453 | T26: 326 | U26: 816 | V26: 0.3995098039
A27: 18 | B27: Southeast Texas | C27: 527 | D27: Region 5 ESC | E27: 29 | F27: 259 | G27: 0.111969112 | H27: 227 | I27: 744 | J27: 0.3051075269 | K27: 358 | L27: 1058 | M27: 0.3383742911 | N27: 515 | O27: 1267 | P27: 0.4064719811 | Q27: 419 | R27: 1015 | S27: 0.4128078818 | T27: 595 | U27: 1215 | V27: 0.4897119342
A28: 19 | B28: Golden Crescent | C28: 532 | D28: Victoria College | E28: 154 | F28: 580 | G28: 0.2655172414 | H28: 181 | I28: 728 | J28: 0.2486263736 | K28: 207 | L28: 985 | M28: 0.2101522843 | N28: 177 | O28: 956 | P28: 0.1851464435 | Q28: 90 | R28: 712 | S28: 0.1264044944 | T28: 156 | U28: 889 | V28: 0.1754780652
A29: 20 | B29: Alamo | C29: 512 | D29: Region 20 ESC | E29: 2273 | F29: 5785 | G29: 0.3929127053 | H29: 2584 | I29: 6988 | J29: 0.3697767602 | K29: 2823 | L29: 7477 | M29: 0.3775578441 | N29: 3092 | O29: 7055 | P29: 0.43827073 | Q29: 2916 | R29: 6418 | S29: 0.4543471486 | T29: 3141 | U29: 6549 | V29: 0.4796152084
A30: 21 | B30: South Texas | C30: 518 | D30: Laredo College | E30: 291 | F30: 1142 | G30: 0.2548161121 | H30: 406 | I30: 1436 | J30: 0.282729805 | K30: 633 | L30: 1918 | M30: 0.3300312826 | N30: 494 | O30: 1530 | P30: 0.322875817 | Q30: 445 | R30: 1608 | S30: 0.2767412935 | T30: 508 | U30: 1523 | V30: 0.3335521996
A31: 22 | B31: Coastal Bend | C31: 542 | D31: Region 2 ESC | E31: 2 | F31: 313 | G31: 0.006389776358 | H31: 199 | I31: 1824 | J31: 0.1091008772 | K31: 313 | L31: 2441 | M31: 0.1282261368 | N31: 281 | O31: 2036 | P31: 0.1380157171 | Q31: 185 | R31: 1836 | S31: 0.1007625272 | T31: 291 | U31: 1172 | V31: 0.2482935154
A32: 23 | B32: Lower Rio | C32: 524 | D32: Region 1 ESC | E32: 616 | F32: 1811 | G32: 0.3401435671 | H32: 1554 | I32: 3548 | J32: 0.4379932356 | K32: 1893 | L32: 4400 | M32: 0.4302272727 | N32: 1767 | O32: 4333 | P32: 0.4078006 | Q32: 1553 | R32: 4040 | S32: 0.3844059406 | T32: 1340 | U32: 3429 | V32: 0.3907844853
A33: 24 | B33: Cameron County | C33: 506 | D33: Brownsville ISD | E33: 391 | F33: 1246 | G33: 0.3138041734 | H33: 649 | I33: 1752 | J33: 0.37043379 | K33: 934 | L33: 2365 | M33: 0.3949260042 | N33: 838 | O33: 2112 | P33: 0.396780303 | Q33: 669 | R33: 1961 | S33: 0.3411524732 | T33: 510 | U33: 1781 | V33: 0.2863559798
A34: 25 | B34: Texoma | C34: 514 | D34: Grayson College | E34: 127 | F34: 319 | G34: 0.3981191223 | H34: 188 | I34: 481 | J34: 0.3908523909 | K34: 355 | L34: 731 | M34: 0.4856361149 | N34: 274 | O34: 689 | P34: 0.3976777939 | Q34: 215 | R34: 669 | S34: 0.3213751868 | T34: 186 | U34: 643 | V34: 0.2892690513
A35: 26 | B35: Central Texas | C35: 534 | D35: Central Texas College | E35: 97 | F35: 693 | G35: 0.13997114 | H35: 46 | I35: 374 | J35: 0.1229946524 | K35: 19 | L35: 218 | M35: 0.0871559633 | N35: 25 | O35: 376 | P35: 0.0664893617 | Q35: 26 | R35: 399 | S35: 0.06516290727 | T35: 4 | U35: 83 | V35: 0.04819277108
A36: 26 | B36: Central Texas | C36: 535 | D36: Temple College | E36: 76 | F36: 341 | G36: 0.2228739003 | H36: 110 | I36: 755 | J36: 0.1456953642 | K36: 72 | L36: 763 | M36: 0.09436435125 | N36: 200 | O36: 967 | P36: 0.2068252327 | Q36: 241 | R36: 1124 | S36: 0.2144128114 | T36: 167 | U36: 1234 | V36: 0.1353322528
A37: 27 | B37: Middle Rio | C37: 530 | D37: Southwest Texas Junior College | E37: 29 | F37: 836 | G37: 0.03468899522 | H37: 24 | I37: 821 | J37: 0.02923264312 | K37: 42 | L37: 1122 | M37: 0.03743315508 | N37: 27 | O37: 1068 | P37: 0.02528089888 | Q37: 24 | R37: 942 | S37: 0.02547770701 | T37: 21 | U37: 865 | V37: 0.02427745665
A38: 28 | B38: Gulf Coast | C38: 515 | D38: Houston-Galveston Area Council | E38: 11090 | F38: 21896 | G38: 0.5064852028 | H38: 9965 | I38: 19594 | J38: 0.5085740533 | K38: 10305 | L38: 21439 | M38: 0.4806660758 | N38: 9645 | O38: 21877 | P38: 0.4408739772 | Q38: 8725 | R38: 19995 | S38: 0.4363590898 | T38: 8036 | U38: 19105 | V38: 0.4206228736
D39: Orphan Grantees | E39: 835 | F39: 3280 | G39: 0.2545731707 | H39: 31 | I39: 102 | J39: 0.3039215686 | K39: 34 | L39: 102 | M39: 0.3333333333 | N39: 32 | O39: 132 | P39: 0.2424242424 | Q39: 13 | R39: 93 | S39: 0.1397849462 | V39: NA
B40: Statewide | D40: Statewide | E40: 28954 | F40: 68616 | G40: =E40/F40 -> 0.4219715518 | H40: 28944 | I40: 70715 | J40: =H40/I40 -> 0.4093049565 | K40: 33171 | L40: 82893 | M40: =K40/L40 -> 0.4001664797 | N40: 34596 | O40: 83821 | P40: =N40/O40 -> 0.412736665 | Q40: 32786 | R40: 81622 | S40: =Q40/R40 -> 0.4016809194 | T40: 32237 | U40: 78029 | V40: =T40/U40 -> 0.413141268
A41: Funds include: 1,3,5,8,17,18,19,20,21,23,24,26,27,28,29,30,31,33,34,35,36,37,40,43,44,45,46,47,48,49,50,52,53,54,55,56 Total: Total participants for quarterly period described Missing SSN: Number of participants having an invalid/missing SSN as described by the Social Security Administration. Rate: Rate of Invalid participants to Total Participants.

Sheet Exiters - QTR
E1: Jul13 - Sep13 | H1: Oct13 - Dec13 | K1: Jan14 - Mar14 | N1: Apr14 - Jun14 | Q1: Jul14 - Sep14 | T1: Oct14 - Dec14 | W1: Jan15 - Mar15 | Z1: Apr15 - Jun15 | AC1: Jul15 - Sep15 | AF1: Oct15 - Dec15 | AI1: Jan16 - Mar16 | AL1: Apr16 - Jun16 | AO1: Jul16 - Sep16 | AR1: Oct16 - Dec16 | AU1: Jan17 - Mar17 | AX1: Apr17 - Jun17 | BA1: Jul17 - Sep17 | BD1: Oct17 - Dec17 | BG1: Jan18 - Mar18 | BJ1: Apr18 - Jun18 | BM1: Jul18 - Sep18 | BP1: Oct18 - Dec18 | BS1: Jan19 - Mar19
A2: WDA # | B2: WDA Name | C2: Grantee # | D2: Grantee Name | E2: Missing SSN | F2: Total Exiters | G2: Rate | H2: Missing SSN | I2: Total Exiters | J2: Rate | K2: Missing SSN | L2: Total Exiters | M2: Rate | N2: Missing SSN | O2: Total Exiters | P2: Rate | Q2: Missing SSN | R2: Total Exiters | S2: Rate | T2: Missing SSN | U2: Total Exiters | V2: Rate | W2: Missing SSN | X2: Total Exiters | Y2: Rate | Z2: Missing SSN | AA2: Total Exiters | AB2: Rate | AC2: Missing SSN | AD2: Total Exiters | AE2: Rate | AF2: Missing SSN | AG2: Total Exiters | AH2: Rate | AI2: Missing SSN | AJ2: Total Exiters | AK2: Rate | AL2: Missing SSN | AM2: Total Exiters | AN2: Rate | AO2: Missing SSN | AP2: Total Exiters | AQ2: Rate | AR2: Missing SSN | AS2: Total Exiters | AT2: Rate | AU2: Missing SSN | AV2: Total Exiters | AW2: Rate | AX2: Missing SSN | AY2: Total Exiters | AZ2: Rate | BA2: Missing SSN | BB2: Total Exiters | BC2: Rate | BD2: Missing SSN | BE2: Total Exiters | BF2: Rate | BG2: Missing SSN | BH2: Total Exiters | BI2: Rate | BJ2: Missing SSN | BK2: Total Exiters | BL2: Rate | BM2: Missing SSN | BN2: Total Exiters | BO2: Rate | BP2: Missing SSN | BQ2: Total Exiters | BR2: Rate | BS2: Missing SSN | BT2: Total Exiters | BU2: Rate
A3: 1 | B3: Panhandle | C3: 502 | D3: Amarillo College | E3: 0 | F3: 13 | G3: =E3/F3 -> 0 | H3: 14 | I3: 124 | J3: =H3/I3 -> 0.1129032258 | K3: 13 | L3: 92 | M3: =K3/L3 -> 0.1413043478 | N3: 41 | O3: 227 | P3: =N3/O3 -> 0.1806167401 | S3: NA | T3: 15 | U3: 103 | V3: =T3/U3 -> 0.145631068 | W3: 36 | X3: 178 | Y3: =W3/X3 -> 0.202247191 | Z3: 125 | AA3: 479 | AB3: =Z3/AA3 -> 0.260960334 | AC3: 41 | AD3: 118 | AE3: =AC3/AD3 -> 0.3474576271 | AF3: 43 | AG3: 265 | AH3: =AF3/AG3 -> 0.1622641509 | AI3: 111 | AJ3: 333 | AK3: =AI3/AJ3 -> 0.3333333333 | AL3: 265 | AM3: 716 | AN3: =AL3/AM3 -> 0.3701117318 | AO3: 34 | AP3: 95 | AQ3: =AO3/AP3 -> 0.3578947368 | AR3: 141 | AS3: 383 | AT3: =AR3/AS3 -> 0.3681462141 | AU3: 102 | AV3: 312 | AW3: =AU3/AV3 -> 0.3269230769 | AX3: 211 | AY3: 565 | AZ3: =AX3/AY3 -> 0.3734513274 | BA3: 22 | BB3: 103 | BC3: =BA3/BB3 -> 0.213592233 | BD3: 76 | BE3: 494 | BF3: =BD3/BE3 -> 0.1538461538 | BG3: 71 | BH3: 297 | BI3: =BG3/BH3 -> 0.2390572391 | BJ3: 195 | BK3: 558 | BL3: =BJ3/BK3 -> 0.3494623656 | BM3: 17 | BN3: 84 | BO3: =BM3/BN3 -> 0.2023809524 | BP3: 70 | BQ3: 330 | BR3: =BP3/BQ3 -> 0.2121212121 | BS3: 59 | BT3: 293 | BU3: =BS3/BT3 -> 0.2013651877
A4: 2 | B4: South Plains | C4: 526 | D4: Region 17 ESC, South Plains | E4: 1 | F4: 9 | G4: =E4/F4 -> 0.1111111111 | H4: 12 | I4: 45 | J4: =H4/I4 -> 0.2666666667 | K4: 6 | L4: 34 | M4: =K4/L4 -> 0.1764705882 | N4: 40 | O4: 135 | P4: =N4/O4 -> 0.2962962963 | Q4: 20 | R4: 93 | S4: =Q4/R4 -> 0.2150537634 | T4: 68 | U4: 192 | V4: =T4/U4 -> 0.3541666667 | W4: 56 | X4: 187 | Y4: =W4/X4 -> 0.2994652406 | Z4: 85 | AA4: 297 | AB4: =Z4/AA4 -> 0.2861952862 | AC4: 11 | AD4: 71 | AE4: =AC4/AD4 -> 0.1549295775 | AF4: 49 | AG4: 175 | AH4: =AF4/AG4 -> 0.28 | AI4: 51 | AJ4: 190 | AK4: =AI4/AJ4 -> 0.2684210526 | AL4: 71 | AM4: 330 | AN4: =AL4/AM4 -> 0.2151515152 | AO4: 16 | AP4: 138 | AQ4: =AO4/AP4 -> 0.115942029 | AR4: 49 | AS4: 214 | AT4: =AR4/AS4 -> 0.2289719626 | AU4: 48 | AV4: 209 | AW4: =AU4/AV4 -> 0.2296650718 | AX4: 70 | AY4: 327 | AZ4: =AX4/AY4 -> 0.2140672783 | BA4: 17 | BB4: 90 | BC4: =BA4/BB4 -> 0.1888888889 | BD4: 37 | BE4: 187 | BF4: =BD4/BE4 -> 0.1978609626 | BG4: 36 | BH4: 159 | BI4: =BG4/BH4 -> 0.2264150943 | BJ4: 66 | BK4: 285 | BL4: =BJ4/BK4 -> 0.2315789474 | BM4: 13 | BN4: 113 | BO4: =BM4/BN4 -> 0.1150442478 | BP4: 35 | BQ4: 194 | BR4: =BP4/BQ4 -> 0.1804123711 | BS4: 68 | BT4: 223 | BU4: =BS4/BT4 -> 0.3049327354
A5: 3 | B5: North Texas | C5: 528 | D5: Region 9 ESC | E5: 12 | F5: 44 | G5: 0.2727272727 | H5: 36 | I5: 158 | J5: 0.2278481013 | K5: 22 | L5: 55 | M5: 0.4 | N5: 66 | O5: 185 | P5: 0.3567567568 | Q5: 15 | R5: 62 | S5: 0.2419354839 | T5: 45 | U5: 114 | V5: 0.3947368421 | W5: 39 | X5: 103 | Y5: 0.3786407767 | Z5: 75 | AA5: 223 | AB5: 0.33632287 | AC5: 13 | AD5: 60 | AE5: 0.2166666667 | AF5: 46 | AG5: 115 | AH5: 0.4 | AI5: 28 | AJ5: 102 | AK5: 0.2745098039 | AL5: 93 | AM5: 209 | AN5: 0.4449760766 | AO5: 4 | AP5: 44 | AQ5: 0.09090909091 | AR5: 43 | AS5: 135 | AT5: 0.3185185185 | AU5: 35 | AV5: 116 | AW5: 0.3017241379 | AX5: 52 | AY5: 172 | AZ5: 0.3023255814 | BA5: 9 | BB5: 73 | BC5: 0.1232876712 | BD5: 39 | BE5: 147 | BF5: 0.2653061224 | BG5: 29 | BH5: 104 | BI5: 0.2788461538 | BJ5: 44 | BK5: 192 | BL5: 0.2291666667 | BM5: 5 | BN5: 48 | BO5: 0.1041666667 | BP5: 50 | BQ5: 133 | BR5: 0.3759398496 | BS5: 27 | BT5: 95 | BU5: 0.2842105263
A6: 4 | B6: North Central | C6: 533 | D6: Weatherford ISD | E6: 0 | F6: 13 | G6: 0 | H6: 12 | I6: 49 | J6: 0.2448979592 | K6: 11 | L6: 29 | M6: 0.3793103448 | N6: 62 | O6: 114 | P6: 0.5438596491 | Q6: 0 | R6: 7 | S6: 0 | T6: 19 | U6: 47 | V6: 0.4042553191 | W6: 20 | X6: 57 | Y6: 0.350877193 | Z6: 98 | AA6: 205 | AB6: 0.4780487805 | AC6: 3 | AD6: 15 | AE6: 0.2 | AF6: 39 | AG6: 86 | AH6: 0.4534883721 | AI6: 31 | AJ6: 76 | AK6: 0.4078947368 | AL6: 72 | AM6: 175 | AN6: 0.4114285714 | AO6: 4 | AP6: 9 | AQ6: 0.4444444444 | AR6: 24 | AS6: 49 | AT6: 0.4897959184 | AU6: 38 | AV6: 87 | AW6: 0.4367816092 | AX6: 52 | AY6: 131 | AZ6: 0.3969465649 | BA6: 4 | BB6: 21 | BC6: 0.1904761905 | BD6: 27 | BE6: 84 | BF6: 0.3214285714 | BG6: 23 | BH6: 52 | BI6: 0.4423076923 | BJ6: 34 | BK6: 77 | BL6: 0.4415584416 | BM6: 12 | BN6: 33 | BO6: 0.3636363636 | BP6: 42 | BQ6: 127 | BR6: 0.3307086614 | BS6: 17 | BT6: 49 | BU6: 0.3469387755
A7: 4 | B7: North Central | C7: 536 | D7: Denton ISD | E7: 25 | F7: 81 | G7: 0.3086419753 | H7: 247 | I7: 428 | J7: 0.5771028037 | K7: 164 | L7: 247 | M7: 0.6639676113 | N7: 383 | O7: 575 | P7: 0.6660869565 | Q7: 42 | R7: 95 | S7: 0.4421052632 | T7: 296 | U7: 464 | V7: 0.6379310345 | W7: 257 | X7: 393 | Y7: 0.6539440204 | Z7: 486 | AA7: 745 | AB7: 0.6523489933 | AC7: 123 | AD7: 204 | AE7: 0.6029411765 | AF7: 444 | AG7: 677 | AH7: 0.6558345643 | AI7: 336 | AJ7: 541 | AK7: 0.6210720887 | AL7: 782 | AM7: 1128 | AN7: 0.6932624113 | AO7: 57 | AP7: 123 | AQ7: 0.4634146341 | AR7: 292 | AS7: 461 | AT7: 0.6334056399 | AU7: 299 | AV7: 459 | AW7: 0.651416122 | AX7: 606 | AY7: 951 | AZ7: 0.6372239748 | BA7: 126 | BB7: 218 | BC7: 0.5779816514 | BD7: 395 | BE7: 546 | BF7: 0.7234432234 | BG7: 306 | BH7: 421 | BI7: 0.7268408551 | BJ7: 729 | BK7: 1049 | BL7: 0.6949475691 | BM7: 120 | BN7: 196 | BO7: 0.612244898 | BP7: 390 | BQ7: 555 | BR7: 0.7027027027 | BS7: 392 | BT7: 533 | BU7: 0.7354596623
A8: 4 | B8: North Central | C8: 540 | D8: Navarro College | E8: 0 | F8: 1 | G8: 0 | H8: 34 | I8: 136 | J8: 0.25 | K8: 15 | L8: 53 | M8: 0.2830188679 | N8: 62 | O8: 175 | P8: 0.3542857143 | Q8: 3 | R8: 13 | S8: 0.2307692308 | T8: 25 | U8: 87 | V8: 0.2873563218 | W8: 24 | X8: 76 | Y8: 0.3157894737 | Z8: 69 | AA8: 243 | AB8: 0.2839506173 | AC8: 14 | AD8: 45 | AE8: 0.3111111111 | AF8: 22 | AG8: 75 | AH8: 0.2933333333 | AI8: 33 | AJ8: 105 | AK8: 0.3142857143 | AL8: 117 | AM8: 273 | AN8: 0.4285714286 | AO8: 18 | AP8: 40 | AQ8: 0.45 | AR8: 35 | AS8: 93 | AT8: 0.376344086 | AU8: 35 | AV8: 104 | AW8: 0.3365384615 | AX8: 73 | AY8: 256 | AZ8: 0.28515625 | BA8: 19 | BB8: 87 | BC8: 0.2183908046 | BD8: 32 | BE8: 150 | BF8: 0.2133333333 | BG8: 24 | BH8: 97 | BI8: 0.2474226804 | BJ8: 33 | BK8: 188 | BL8: 0.1755319149 | BM8: 14 | BN8: 81 | BO8: 0.1728395062 | BP8: 22 | BQ8: 129 | BR8: 0.1705426357 | BS8: 20 | BT8: 95 | BU8: 0.2105263158
A9: 4 | B9: North Central | C9: 541 | D9: Paris Jr College - North Central | G9: NA | J9: NA | M9: NA | P9: NA | S9: NA | V9: NA | W9: 1 | X9: 4 | Y9: 0.25 | Z9: 15 | AA9: 25 | AB9: 0.6 | AC9: 6 | AD9: 12 | AE9: 0.5 | AF9: 10 | AG9: 25 | AH9: 0.4 | AI9: 4 | AJ9: 14 | AK9: 0.2857142857 | AL9: 29 | AM9: 68 | AN9: 0.4264705882 | AO9: 1 | AP9: 10 | AQ9: 0.1 | AR9: 9 | AS9: 23 | AT9: 0.3913043478 | AU9: 3 | AV9: 25 | AW9: 0.12 | AX9: 22 | AY9: 57 | AZ9: 0.3859649123 | BA9: 5 | BB9: 21 | BC9: 0.2380952381 | BD9: 7 | BE9: 23 | BF9: 0.3043478261 | BG9: 6 | BH9: 22 | BI9: 0.2727272727 | BJ9: 21 | BK9: 81 | BL9: 0.2592592593 | BM9: 0 | BN9: 2 | BO9: 0 | BP9: 2 | BQ9: 17 | BR9: 0.1176470588 | BS9: 4 | BT9: 29 | BU9: 0.1379310345
A10: 5 | B10: Tarrant County | C10: 538 | D10: Tarrant County WDB | E10: 18 | F10: 129 | G10: 0.1395348837 | H10: 359 | I10: 767 | J10: 0.4680573664 | K10: 335 | L10: 620 | M10: 0.5403225806 | N10: 880 | O10: 1523 | P10: 0.5778069599 | Q10: 60 | R10: 183 | S10: 0.3278688525 | T10: 598 | U10: 1024 | V10: 0.583984375 | W10: 582 | X10: 1026 | Y10: 0.567251462 | Z10: 1178 | AA10: 1955 | AB10: 0.6025575448 | AC10: 68 | AD10: 193 | AE10: 0.3523316062 | AF10: 646 | AG10: 1082 | AH10: 0.5970425139 | AI10: 619 | AJ10: 1016 | AK10: 0.6092519685 | AL10: 1379 | AM10: 2265 | AN10: 0.6088300221 | AO10: 49 | AP10: 123 | AQ10: 0.3983739837 | AR10: 660 | AS10: 1101 | AT10: 0.5994550409 | AU10: 579 | AV10: 874 | AW10: 0.6624713959 | AX10: 1605 | AY10: 2403 | AZ10: 0.6679151061 | BA10: 73 | BB10: 175 | BC10: 0.4171428571 | BD10: 709 | BE10: 1155 | BF10: 0.6138528139 | BG10: 473 | BH10: 824 | BI10: 0.5740291262 | BJ10: 1243 | BK10: 2183 | BL10: 0.5693999084 | BM10: 169 | BN10: 406 | BO10: 0.4162561576 | BP10: 622 | BQ10: 1124 | BR10: 0.5533807829 | BS10: 453 | BT10: 805 | BU10: 0.5627329193
A11: 6 | B11: Dallas County | C11: 509 | D11: Dallas County LDB | E11: 122 | F11: 186 | G11: 0.6559139785 | H11: 679 | I11: 1051 | J11: 0.6460513796 | K11: 591 | L11: 896 | M11: 0.6595982143 | N11: 1592 | O11: 2368 | P11: 0.6722972973 | Q11: 137 | R11: 203 | S11: 0.6748768473 | T11: 430 | U11: 749 | V11: 0.5740987984 | W11: 293 | X11: 575 | Y11: 0.5095652174 | Z11: 921 | AA11: 1827 | AB11: 0.5041050903 | AC11: 216 | AD11: 737 | AE11: 0.2930800543 | AF11: 631 | AG11: 1530 | AH11: 0.4124183007 | AI11: 535 | AJ11: 1379 | AK11: 0.3879622915 | AL11: 1558 | AM11: 3054 | AN11: 0.5101506221 | AO11: 333 | AP11: 791 | AQ11: 0.4209860936 | AR11: 1116 | AS11: 1990 | AT11: 0.5608040201 | AU11: 1065 | AV11: 1662 | AW11: 0.6407942238 | AX11: 2091 | AY11: 3345 | AZ11: 0.6251121076 | BA11: 563 | BB11: 1034 | BC11: 0.5444874275 | BD11: 1330 | BE11: 2298 | BF11: 0.5787641427 | BG11: 923 | BH11: 1621 | BI11: 0.5694016039 | BJ11: 2147 | BK11: 3212 | BL11: 0.6684308842 | BM11: 642 | BN11: 1166 | BO11: 0.5506003431 | BP11: 1237 | BQ11: 2051 | BR11: 0.6031204291 | BS11: 894 | BT11: 1340 | BU11: 0.6671641791
A12: 7 | B12: North East Texas | C12: 523 | D12: Paris Junior College, Northeast Texas | E12: 2 | F12: 17 | G12: 0.1176470588 | H12: 65 | I12: 211 | J12: 0.308056872 | K12: 26 | L12: 88 | M12: 0.2954545455 | N12: 91 | O12: 207 | P12: 0.4396135266 | Q12: 4 | R12: 30 | S12: 0.1333333333 | T12: 28 | U12: 123 | V12: 0.2276422764 | W12: 22 | X12: 69 | Y12: 0.3188405797 | Z12: 66 | AA12: 176 | AB12: 0.375 | AC12: 10 | AD12: 43 | AE12: 0.2325581395 | AF12: 35 | AG12: 117 | AH12: 0.2991452991 | AI12: 34 | AJ12: 112 | AK12: 0.3035714286 | AL12: 83 | AM12: 196 | AN12: 0.4234693878 | AO12: 6 | AP12: 21 | AQ12: 0.2857142857 | AR12: 35 | AS12: 88 | AT12: 0.3977272727 | AU12: 27 | AV12: 91 | AW12: 0.2967032967 | AX12: 49 | AY12: 155 | AZ12: 0.3161290323 | BA12: 15 | BB12: 65 | BC12: 0.2307692308 | BD12: 42 | BE12: 127 | BF12: 0.3307086614 | BG12: 31 | BH12: 102 | BI12: 0.3039215686 | BJ12: 60 | BK12: 156 | BL12: 0.3846153846 | BM12: 15 | BN12: 71 | BO12: 0.2112676056 | BP12: 39 | BQ12: 100 | BR12: 0.39 | BS12: 27 | BT12: 70 | BU12: 0.3857142857
A13: 7 | B13: North East Texas | C13: 543 | D13: Texarkana College | E13: 28 | F13: 82 | G13: 0.3414634146 | H13: 46 | I13: 173 | J13: 0.2658959538 | K13: 41 | L13: 128 | M13: 0.3203125 | N13: 206 | O13: 315 | P13: 0.653968254 | Q13: 4 | R13: 48 | S13: 0.08333333333 | T13: 8 | U13: 91 | V13: 0.08791208791 | W13: 3 | X13: 85 | Y13: 0.03529411765 | Z13: 10 | AA13: 110 | AB13: 0.09090909091 | AC13: 3 | AD13: 51 | AE13: 0.05882352941 | AF13: 8 | AG13: 88 | AH13: 0.09090909091 | AI13: 10 | AJ13: 92 | AK13: 0.1086956522 | AL13: 10 | AM13: 103 | AN13: 0.09708737864 | AO13: 5 | AP13: 45 | AQ13: 0.1111111111 | AR13: 2 | AS13: 94 | AT13: 0.02127659574 | AU13: 8 | AV13: 82 | AW13: 0.09756097561 | AX13: 10 | AY13: 125 | AZ13: 0.08 | BA13: 3 | BB13: 57 | BC13: 0.05263157895 | BD13: 6 | BE13: 72 | BF13: 0.08333333333 | BG13: 7 | BH13: 70 | BI13: 0.1 | BJ13: 9 | BK13: 96 | BL13: 0.09375 | BM13: 0 | BN13: 22 | BO13: 0 | BP13: 17 | BQ13: 69 | BR13: 0.2463768116 | BS13: 5 | BT13: 47 | BU13: 0.1063829787
A14: 8 | B14: East Texas | C14: 519 | D14: Literacy Council of Tyler | E14: 75 | F14: 307 | G14: 0.2442996743 | H14: 209 | I14: 646 | J14: 0.3235294118 | K14: 135 | L14: 387 | M14: 0.3488372093 | N14: 265 | O14: 727 | P14: 0.3645116919 | Q14: 83 | R14: 266 | S14: 0.3120300752 | T14: 191 | U14: 516 | V14: 0.3701550388 | W14: 155 | X14: 429 | Y14: 0.3613053613 | Z14: 350 | AA14: 849 | AB14: 0.4122497055 | AC14: 97 | AD14: 326 | AE14: 0.2975460123 | AF14: 195 | AG14: 538 | AH14: 0.3624535316 | AI14: 174 | AJ14: 518 | AK14: 0.3359073359 | AL14: 341 | AM14: 937 | AN14: 0.363927428 | AO14: 60 | AP14: 293 | AQ14: 0.204778157 | AR14: 159 | AS14: 515 | AT14: 0.3087378641 | AU14: 183 | AV14: 511 | AW14: 0.3581213307 | AX14: 321 | AY14: 787 | AZ14: 0.4078780178 | BA14: 110 | BB14: 364 | BC14: 0.3021978022 | BD14: 190 | BE14: 492 | BF14: 0.3861788618 | BG14: 135 | BH14: 363 | BI14: 0.3719008264 | BJ14: 258 | BK14: 691 | BL14: 0.3733719247 | BM14: 91 | BN14: 288 | BO14: 0.3159722222 | BP14: 189 | BQ14: 457 | BR14: 0.4135667396 | BS14: 148 | BT14: 378 | BU14: 0.3915343915
A15: 9 | B15: West Central | C15: 501 | D15: Abilene ISD | E15: 0 | F15: 27 | G15: 0 | H15: 7 | I15: 153 | J15: 0.04575163399 | K15: 6 | L15: 77 | M15: 0.07792207792 | N15: 19 | O15: 173 | P15: 0.1098265896 | Q15: 2 | R15: 51 | S15: 0.03921568627 | T15: 18 | U15: 189 | V15: 0.09523809524 | W15: 18 | X15: 156 | Y15: 0.1153846154 | Z15: 34 | AA15: 312 | AB15: 0.108974359 | AC15: 0 | AD15: 39 | AE15: 0 | AF15: 8 | AG15: 151 | AH15: 0.05298013245 | AI15: 16 | AJ15: 150 | AK15: 0.1066666667 | AL15: 22 | AM15: 310 | AN15: 0.07096774194 | AO15: 0 | AP15: 34 | AQ15: 0 | AR15: 22 | AS15: 214 | AT15: 0.1028037383 | AU15: 18 | AV15: 195 | AW15: 0.09230769231 | AX15: 50 | AY15: 380 | AZ15: 0.1315789474 | BA15: 9 | BB15: 54 | BC15: 0.1666666667 | BD15: 19 | BE15: 234 | BF15: 0.0811965812 | BG15: 19 | BH15: 170 | BI15: 0.1117647059 | BJ15: 56 | BK15: 406 | BL15: 0.1379310345 | BM15: 1 | BN15: 44 | BO15: 0.02272727273 | BP15: 25 | BQ15: 214 | BR15: 0.1168224299 | BS15: 32 | BT15: 190 | BU15: 0.1684210526
A16: 10 | B16: Borderplex | C16: 544 | D16: Ysleta ISD | E16: 26 | F16: 163 | G16: 0.1595092025 | H16: 153 | I16: 717 | J16: 0.2133891213 | K16: 117 | L16: 569 | M16: 0.2056239016 | N16: 333 | O16: 1414 | P16: 0.2355021216 | Q16: 28 | R16: 197 | S16: 0.1421319797 | T16: 124 | U16: 636 | V16: 0.1949685535 | W16: 103 | X16: 557 | Y16: 0.1849192101 | Z16: 265 | AA16: 1350 | AB16: 0.1962962963 | AC16: 24 | AD16: 210 | AE16: 0.1142857143 | AF16: 105 | AG16: 683 | AH16: 0.1537335286 | AI16: 100 | AJ16: 603 | AK16: 0.1658374793 | AL16: 216 | AM16: 1223 | AN16: 0.1766148814 | AO16: 24 | AP16: 216 | AQ16: 0.1111111111 | AR16: 90 | AS16: 581 | AT16: 0.1549053356 | AU16: 101 | AV16: 557 | AW16: 0.1813285458 | AX16: 180 | AY16: 1139 | AZ16: 0.1580333626 | BA16: 25 | BB16: 300 | BC16: 0.08333333333 | BD16: 56 | BE16: 525 | BF16: 0.1066666667 | BG16: 59 | BH16: 547 | BI16: 0.1078610603 | BJ16: 113 | BK16: 1185 | BL16: 0.09535864979 | BM16: 23 | BN16: 206 | BO16: 0.1116504854 | BP16: 40 | BQ16: 549 | BR16: 0.07285974499 | BS16: 40 | BT16: 445 | BU16: 0.08988764045
A17: 11 | B17: Permian Basin | C17: 517 | D17: Howard College, Permian Basin | E17: 8 | F17: 16 | G17: 0.5 | H17: 27 | I17: 59 | J17: 0.4576271186 | K17: 23 | L17: 38 | M17: 0.6052631579 | N17: 31 | O17: 71 | P17: 0.4366197183 | Q17: 27 | R17: 32 | S17: 0.84375 | T17: 20 | U17: 37 | V17: 0.5405405405 | W17: 14 | X17: 29 | Y17: 0.4827586207 | Z17: 25 | AA17: 62 | AB17: 0.4032258065 | AC17: 15 | AD17: 29 | AE17: 0.5172413793 | AF17: 18 | AG17: 51 | AH17: 0.3529411765 | AI17: 42 | AJ17: 72 | AK17: 0.5833333333 | AL17: 21 | AM17: 66 | AN17: 0.3181818182 | AO17: 8 | AP17: 24 | AQ17: 0.3333333333 | AR17: 13 | AS17: 42 | AT17: 0.3095238095 | AU17: 16 | AV17: 40 | AW17: 0.4 | AX17: 31 | AY17: 58 | AZ17: 0.5344827586 | BA17: 4 | BB17: 18 | BC17: 0.2222222222 | BD17: 10 | BE17: 30 | BF17: 0.3333333333 | BG17: 7 | BH17: 36 | BI17: 0.1944444444 | BJ17: 24 | BK17: 47 | BL17: 0.5106382979 | BM17: 36 | BN17: 53 | BO17: 0.679245283 | BP17: 55 | BQ17: 69 | BR17: 0.7971014493 | BS17: 43 | BT17: 57 | BU17: 0.7543859649
A18: 11 | B18: Permian Basin | C18: 525 | D18: Region 17 ESC, Permian Basin | G18: NA | H18: 2 | I18: 3 | J18: 0.6666666667 | K18: 3 | L18: 5 | M18: 0.6 | N18: 14 | O18: 49 | P18: 0.2857142857 | Q18: 6 | R18: 6 | S18: 1 | T18: 12 | U18: 21 | V18: 0.5714285714 | W18: 9 | X18: 21 | Y18: 0.4285714286 | Z18: 43 | AA18: 117 | AB18: 0.3675213675 | AC18: 0 | AD18: 1 | AE18: 0 | AF18: 6 | AG18: 16 | AH18: 0.375 | AI18: 6 | AJ18: 31 | AK18: 0.1935483871 | AL18: 46 | AM18: 98 | AN18: 0.4693877551 | AO18: 2 | AP18: 3 | AQ18: 0.6666666667 | AR18: 6 | AS18: 16 | AT18: 0.375 | AU18: 19 | AV18: 37 | AW18: 0.5135135135 | AX18: 29 | AY18: 77 | AZ18: 0.3766233766 | BA18: 1 | BB18: 2 | BC18: 0.5 | BD18: 3 | BE18: 20 | BF18: 0.15 | BG18: 11 | BH18: 22 | BI18: 0.5 | BJ18: 47 | BK18: 93 | BL18: 0.5053763441 | BM18: 3 | BN18: 6 | BO18: 0.5 | BP18: 14 | BQ18: 24 | BR18: 0.5833333333 | BS18: 9 | BT18: 27 | BU18: 0.3333333333
A19: 11 | B19: Permian Basin | C19: 539 | D19: Midland College | E19: 3 | F19: 15 | G19: 0.2 | H19: 29 | I19: 180 | J19: 0.1611111111 | K19: 21 | L19: 103 | M19: 0.2038834951 | N19: 71 | O19: 255 | P19: 0.2784313725 | Q19: 1 | R19: 18 | S19: 0.05555555556 | T19: 46 | U19: 256 | V19: 0.1796875 | W19: 48 | X19: 171 | Y19: 0.2807017544 | Z19: 107 | AA19: 408 | AB19: 0.262254902 | AC19: 4 | AD19: 64 | AE19: 0.0625 | AF19: 131 | AG19: 388 | AH19: 0.337628866 | AI19: 83 | AJ19: 239 | AK19: 0.3472803347 | AL19: 62 | AM19: 272 | AN19: 0.2279411765 | AO19: 16 | AP19: 98 | AQ19: 0.1632653061 | AR19: 97 | AS19: 383 | AT19: 0.2532637076 | AU19: 52 | AV19: 175 | AW19: 0.2971428571 | AX19: 88 | AY19: 372 | AZ19: 0.2365591398 | BA19: 4 | BB19: 60 | BC19: 0.06666666667 | BD19: 96 | BE19: 359 | BF19: 0.2674094708 | BG19: 21 | BH19: 92 | BI19: 0.2282608696 | BJ19: 92 | BK19: 346 | BL19: 0.2658959538 | BM19: 5 | BN19: 41 | BO19: 0.1219512195 | BP19: 53 | BQ19: 281 | BR19: 0.1886120996 | BS19: 33 | BT19: 165 | BU19: 0.2
A20: 11 | B20: Permian Basin | C20: 545 | D20: Odessa College | E20: 12 | F20: 72 | G20: 0.1666666667 | H20: 43 | I20: 193 | J20: 0.2227979275 | K20: 25 | L20: 121 | M20: 0.2066115702 | N20: 75 | O20: 241 | P20: 0.3112033195 | Q20: 19 | R20: 55 | S20: 0.3454545455 | T20: 37 | U20: 148 | V20: 0.25 | W20: 40 | X20: 207 | Y20: 0.193236715 | Z20: 70 | AA20: 327 | AB20: 0.2140672783 | AC20: 12 | AD20: 70 | AE20: 0.1714285714 | AF20: 38 | AG20: 200 | AH20: 0.19 | AI20: 31 | AJ20: 208 | AK20: 0.1490384615 | AL20: 72 | AM20: 376 | AN20: 0.1914893617 | AO20: 21 | AP20: 111 | AQ20: 0.1891891892 | AR20: 44 | AS20: 247 | AT20: 0.1781376518 | AU20: 42 | AV20: 216 | AW20: 0.1944444444 | AX20: 74 | AY20: 358 | AZ20: 0.2067039106 | BA20: 21 | BB20: 99 | BC20: 0.2121212121 | BD20: 31 | BE20: 206 | BF20: 0.1504854369 | BG20: 38 | BH20: 185 | BI20: 0.2054054054 | BJ20: 82 | BK20: 374 | BL20: 0.2192513369 | BM20: 14 | BN20: 64 | BO20: 0.21875 | BP20: 34 | BQ20: 226 | BR20: 0.1504424779 | BS20: 30 | BT20: 164 | BU20: 0.1829268293
A21: 12 | B21: Concho Valley | C21: 516 | D21: Howard College, Concho Valley | E21: 15 | F21: 47 | G21: 0.3191489362 | H21: 29 | I21: 168 | J21: 0.1726190476 | K21: 47 | L21: 109 | M21: 0.4311926606 | N21: 79 | O21: 219 | P21: 0.3607305936 | Q21: 11 | R21: 31 | S21: 0.3548387097 | T21: 60 | U21: 120 | V21: 0.5 | W21: 55 | X21: 87 | Y21: 0.632183908 | Z21: 67 | AA21: 191 | AB21: 0.3507853403 | AC21: 35 | AD21: 78 | AE21: 0.4487179487 | AF21: 62 | AG21: 130 | AH21: 0.4769230769 | AI21: 66 | AJ21: 167 | AK21: 0.3952095808 | AL21: 101 | AM21: 255 | AN21: 0.3960784314 | AO21: 43 | AP21: 110 | AQ21: 0.3909090909 | AR21: 41 | AS21: 132 | AT21: 0.3106060606 | AU21: 52 | AV21: 139 | AW21: 0.3741007194 | AX21: 8 | AY21: 146 | AZ21: 0.05479452055 | BA21: 1 | BB21: 50 | BC21: 0.02 | BD21: 3 | BE21: 108 | BF21: 0.02777777778 | BG21: 4 | BH21: 85 | BI21: 0.04705882353 | BJ21: 4 | BK21: 213 | BL21: 0.01877934272 | BM21: 4 | BN21: 65 | BO21: 0.06153846154 | BP21: 5 | BQ21: 102 | BR21: 0.04901960784 | BS21: 3 | BT21: 77 | BU21: 0.03896103896
A22: 13 | B22: Heart of Texas | C22: 520 | D22: McLennan Community College | E22: 69 | F22: 243 | G22: 0.2839506173 | H22: 116 | I22: 512 | J22: 0.2265625 | K22: 98 | L22: 258 | M22: 0.3798449612 | N22: 186 | O22: 484 | P22: 0.3842975207 | Q22: 59 | R22: 190 | S22: 0.3105263158 | T22: 114 | U22: 310 | V22: 0.3677419355 | W22: 89 | X22: 262 | Y22: 0.3396946565 | Z22: 147 | AA22: 349 | AB22: 0.4212034384 | AC22: 30 | AD22: 110 | AE22: 0.2727272727 | AF22: 126 | AG22: 263 | AH22: 0.4790874525 | AI22: 74 | AJ22: 209 | AK22: 0.3540669856 | AL22: 144 | AM22: 453 | AN22: 0.3178807947 | AO22: 6 | AP22: 42 | AQ22: 0.1428571429 | AR22: 81 | AS22: 309 | AT22: 0.2621359223 | AU22: 44 | AV22: 143 | AW22: 0.3076923077 | AX22: 135 | AY22: 324 | AZ22: 0.4166666667 | BA22: 26 | BB22: 94 | BC22: 0.2765957447 | BD22: 122 | BE22: 329 | BF22: 0.3708206687 | BG22: 45 | BH22: 138 | BI22: 0.3260869565 | BJ22: 102 | BK22: 360 | BL22: 0.2833333333 | BM22: 19 | BN22: 99 | BO22: 0.1919191919 | BP22: 60 | BQ22: 218 | BR22: 0.2752293578 | BS22: 44 | BT22: 141 | BU22: 0.3120567376
A23: 14 | B23: Capital Area | C23: 504 | D23: Austin Community College | E23: 40 | F23: 140 | G23: 0.2857142857 | H23: 279 | I23: 744 | J23: 0.375 | K23: 239 | L23: 416 | M23: 0.5745192308 | N23: 627 | O23: 1156 | P23: 0.5423875433 | Q23: 60 | R23: 153 | S23: 0.3921568627 | T23: 303 | U23: 729 | V23: 0.4156378601 | W23: 236 | X23: 477 | Y23: 0.4947589099 | Z23: 678 | AA23: 1161 | AB23: 0.5839793282 | AC23: 86 | AD23: 244 | AE23: 0.3524590164 | AF23: 359 | AG23: 800 | AH23: 0.44875 | AI23: 254 | AJ23: 613 | AK23: 0.4143556281 | AL23: 715 | AM23: 1474 | AN23: 0.4850746269 | AO23: 85 | AP23: 218 | AQ23: 0.3899082569 | AR23: 432 | AS23: 927 | AT23: 0.4660194175 | AU23: 288 | AV23: 608 | AW23: 0.4736842105 | AX23: 855 | AY23: 1736 | AZ23: 0.4925115207 | BA23: 77 | BB23: 204 | BC23: 0.3774509804 | BD23: 359 | BE23: 881 | BF23: 0.4074914869 | BG23: 289 | BH23: 645 | BI23: 0.4480620155 | BJ23: 777 | BK23: 1647 | BL23: 0.4717668488 | BM23: 50 | BN23: 189 | BO23: 0.2645502646 | BP23: 347 | BQ23: 972 | BR23: 0.3569958848 | BS23: 268 | BT23: 648 | BU23: 0.4135802469
A24: 15 | B24: Rural Capital | C24: 508 | D24: Community Action Inc. | E24: 9 | F24: 49 | G24: 0.1836734694 | H24: 79 | I24: 259 | J24: 0.305019305 | K24: 52 | L24: 135 | M24: 0.3851851852 | N24: 131 | O24: 347 | P24: 0.3775216138 | Q24: 18 | R24: 61 | S24: 0.2950819672 | T24: 83 | U24: 229 | V24: 0.3624454148 | W24: 56 | X24: 190 | Y24: 0.2947368421 | Z24: 146 | AA24: 372 | AB24: 0.3924731183 | AC24: 14 | AD24: 81 | AE24: 0.1728395062 | AF24: 63 | AG24: 233 | AH24: 0.2703862661 | AI24: 99 | AJ24: 251 | AK24: 0.3944223108 | AL24: 216 | AM24: 498 | AN24: 0.4337349398 | AO24: 27 | AP24: 85 | AQ24: 0.3176470588 | AR24: 151 | AS24: 311 | AT24: 0.4855305466 | AU24: 142 | AV24: 275 | AW24: 0.5163636364 | AX24: 388 | AY24: 751 | AZ24: 0.516644474 | BA24: 44 | BB24: 197 | BC24: 0.2233502538 | BD24: 244 | BE24: 556 | BF24: 0.4388489209 | BG24: 136 | BH24: 303 | BI24: 0.4488448845 | BJ24: 356 | BK24: 795 | BL24: 0.4477987421 | BM24: 36 | BN24: 192 | BO24: 0.1875 | BP24: 177 | BQ24: 517 | BR24: 0.3423597679 | BS24: 183 | BT24: 424 | BU24: 0.4316037736
A25: 16 | B25: Brazos Valley | C25: 505 | D25: Brazos Valley COG | E25: 15 | F25: 46 | G25: 0.3260869565 | H25: 252 | I25: 603 | J25: 0.4179104478 | K25: 184 | L25: 385 | M25: 0.4779220779 | N25: 723 | O25: 1254 | P25: 0.5765550239 | Q25: 9 | R25: 46 | S25: 0.1956521739 | T25: 125 | U25: 273 | V25: 0.4578754579 | W25: 130 | X25: 281 | Y25: 0.462633452 | Z25: 358 | AA25: 642 | AB25: 0.5576323988 | AC25: 13 | AD25: 71 | AE25: 0.1830985915 | AF25: 63 | AG25: 217 | AH25: 0.2903225806 | AI25: 88 | AJ25: 227 | AK25: 0.3876651982 | AL25: 280 | AM25: 557 | AN25: 0.5026929982 | AO25: 17 | AP25: 49 | AQ25: 0.3469387755 | AR25: 57 | AS25: 147 | AT25: 0.387755102 | AU25: 88 | AV25: 219 | AW25: 0.401826484 | AX25: 207 | AY25: 392 | AZ25: 0.5280612245 | BA25: 66 | BB25: 147 | BC25: 0.4489795918 | BD25: 115 | BE25: 254 | BF25: 0.4527559055 | BG25: 94 | BH25: 213 | BI25: 0.441314554 | BJ25: 284 | BK25: 595 | BL25: 0.4773109244 | BM25: 13 | BN25: 34 | BO25: 0.3823529412 | BP25: 11 | BQ25: 57 | BR25: 0.1929824561 | BS25: 22 | BT25: 81 | BU25: 0.2716049383
A26: 17 | B26: Deep East Texas | C26: 503 | D26: Angelina College | E26: 12 | F26: 50 | G26: 0.24 | H26: 40 | I26: 147 | J26: 0.2721088435 | K26: 16 | L26: 65 | M26: 0.2461538462 | N26: 63 | O26: 175 | P26: 0.36 | Q26: 15 | R26: 74 | S26: 0.2027027027 | T26: 55 | U26: 173 | V26: 0.3179190751 | W26: 40 | X26: 163 | Y26: 0.245398773 | Z26: 106 | AA26: 311 | AB26: 0.3408360129 | AC26: 32 | AD26: 137 | AE26: 0.2335766423 | AF26: 67 | AG26: 222 | AH26: 0.3018018018 | AI26: 48 | AJ26: 194 | AK26: 0.2474226804 | AL26: 114 | AM26: 368 | AN26: 0.3097826087 | AO26: 39 | AP26: 106 | AQ26: 0.3679245283 | AR26: 64 | AS26: 219 | AT26: 0.2922374429 | AU26: 34 | AV26: 116 | AW26: 0.2931034483 | AX26: 74 | AY26: 249 | AZ26: 0.297188755 | BA26: 35 | BB26: 140 | BC26: 0.25 | BD26: 86 | BE26: 304 | BF26: 0.2828947368 | BG26: 42 | BH26: 180 | BI26: 0.2333333333 | BJ26: 103 | BK26: 325 | BL26: 0.3169230769 | BM26: 42 | BN26: 107 | BO26: 0.3925233645 | BP26: 71 | BQ26: 222 | BR26: 0.3198198198 | BS26: 38 | BT26: 97 | BU26: 0.3917525773
A27: 18 | B27: Southeast Texas | C27: 527 | D27: Region 5 ESC | E27: 5 | F27: 28 | G27: 0.1785714286 | H27: 8 | I27: 111 | J27: 0.07207207207 | K27: 5 | L27: 38 | M27: 0.1315789474 | N27: 14 | O27: 80 | P27: 0.175 | Q27: 2 | R27: 34 | S27: 0.05882352941 | T27: 44 | U27: 127 | V27: 0.3464566929 | W27: 33 | X27: 122 | Y27: 0.2704918033 | Z27: 91 | AA27: 285 | AB27: 0.3192982456 | AC27: 28 | AD27: 127 | AE27: 0.2204724409 | AF27: 81 | AG27: 221 | AH27: 0.3665158371 | AI27: 66 | AJ27: 224 | AK27: 0.2946428571 | AL27: 119 | AM27: 282 | AN27: 0.4219858156 | AO27: 45 | AP27: 184 | AQ27: 0.2445652174 | AR27: 122 | AS27: 286 | AT27: 0.4265734266 | AU27: 80 | AV27: 184 | AW27: 0.4347826087 | AX27: 203 | AY27: 455 | AZ27: 0.4461538462 | BA27: 38 | BB27: 110 | BC27: 0.3454545455 | BD27: 112 | BE27: 286 | BF27: 0.3916083916 | BG27: 46 | BH27: 110 | BI27: 0.4181818182 | BJ27: 137 | BK27: 316 | BL27: 0.4335443038 | BM27: 64 | BN27: 126 | BO27: 0.5079365079 | BP27: 152 | BQ27: 336 | BR27: 0.4523809524 | BS27: 71 | BT27: 171 | BU27: 0.4152046784
A28: 19 | B28: Golden Crescent | C28: 532 | D28: Victoria College | E28: 11 | F28: 67 | G28: 0.1641791045 | H28: 32 | I28: 131 | J28: 0.2442748092 | K28: 19 | L28: 87 | M28: 0.2183908046 | N28: 75 | O28: 223 | P28: 0.33632287 | Q28: 4 | R28: 30 | S28: 0.1333333333 | T28: 28 | U28: 123 | V28: 0.2276422764 | W28: 18 | X28: 151 | Y28: 0.119205298 | Z28: 103 | AA28: 323 | AB28: 0.3188854489 | AC28: 15 | AD28: 75 | AE28: 0.2 | AF28: 30 | AG28: 186 | AH28: 0.1612903226 | AI28: 34 | AJ28: 212 | AK28: 0.1603773585 | AL28: 117 | AM28: 429 | AN28: 0.2727272727 | AO28: 7 | AP28: 63 | AQ28: 0.1111111111 | AR28: 43 | AS28: 188 | AT28: 0.2287234043 | AU28: 33 | AV28: 177 | AW28: 0.186440678 | AX28: 87 | AY28: 454 | AZ28: 0.1916299559 | BA28: 3 | BB28: 44 | BC28: 0.06818181818 | BD28: 12 | BE28: 108 | BF28: 0.1111111111 | BG28: 16 | BH28: 100 | BI28: 0.16 | BJ28: 33 | BK28: 277 | BL28: 0.119133574 | BM28: 9 | BN28: 96 | BO28: 0.09375 | BP28: 28 | BQ28: 190 | BR28: 0.1473684211 | BS28: 26 | BT28: 147 | BU28: 0.1768707483
A29: 20 | B29: Alamo | C29: 512 | D29: Region 20 ESC | E29: 55 | F29: 283 | G29: 0.1943462898 | H29: 648 | I29: 1833 | J29: 0.3535188216 | K29: 352 | L29: 836 | M29: 0.4210526316 | N29: 1011 | O29: 2317 | P29: 0.436340095 | Q29: 87 | R29: 237 | S29: 0.3670886076 | T29: 610 | U29: 1594 | V29: 0.382685069 | W29: 433 | X29: 1224 | Y29: 0.3537581699 | Z29: 1203 | AA29: 3237 | AB29: 0.3716404078 | AC29: 117 | AD29: 470 | AE29: 0.2489361702 | AF29: 655 | AG29: 1777 | AH29: 0.368598762 | AI29: 561 | AJ29: 1462 | AK29: 0.3837209302 | AL29: 1141 | AM29: 3022 | AN29: 0.3775645268 | AO29: 172 | AP29: 401 | AQ29: 0.4289276808 | AR29: 625 | AS29: 1426 | AT29: 0.4382889201 | AU29: 715 | AV29: 1640 | AW29: 0.4359756098 | AX29: 1194 | AY29: 2705 | AZ29: 0.4414048059 | BA29: 132 | BB29: 413 | BC29: 0.3196125908 | BD29: 611 | BE29: 1268 | BF29: 0.4818611987 | BG29: 454 | BH29: 1001 | BI29: 0.4535464535 | BJ29: 1146 | BK29: 2509 | BL29: 0.4567556796 | BM29: 204 | BN29: 504 | BO29: 0.4047619048 | BP29: 541 | BQ29: 1291 | BR29: 0.4190549961 | BS29: 476 | BT29: 1079 | BU29: 0.4411492122
A30: 21 | B30: South Texas | C30: 518 | D30: Laredo College | E30: 8 | F30: 47 | G30: 0.170212766 | H30: 50 | I30: 255 | J30: 0.1960784314 | K30: 31 | L30: 155 | M30: 0.2 | N30: 126 | O30: 441 | P30: 0.2857142857 | Q30: 13 | R30: 53 | S30: 0.2452830189 | T30: 62 | U30: 249 | V30: 0.2489959839 | W30: 36 | X30: 157 | Y30: 0.2292993631 | Z30: 224 | AA30: 737 | AB30: 0.3039348711 | AC30: 34 | AD30: 162 | AE30: 0.2098765432 | AF30: 130 | AG30: 411 | AH30: 0.3163017032 | AI30: 97 | AJ30: 297 | AK30: 0.3265993266 | AL30: 338 | AM30: 931 | AN30: 0.3630504834 | AO30: 30 | AP30: 89 | AQ30: 0.3370786517 | AR30: 85 | AS30: 246 | AT30: 0.3455284553 | AU30: 88 | AV30: 260 | AW30: 0.3384615385 | AX30: 161 | AY30: 502 | AZ30: 0.3207171315 | BA30: 45 | BB30: 203 | BC30: 0.2216748768 | BD30: 123 | BE30: 475 | BF30: 0.2589473684 | BG30: 60 | BH30: 275 | BI30: 0.2181818182 | BJ30: 177 | BK30: 530 | BL30: 0.3339622642 | BM30: 21 | BN30: 118 | BO30: 0.1779661017 | BP30: 124 | BQ30: 375 | BR30: 0.3306666667 | BS30: 92 | BT30: 263 | BU30: 0.3498098859
A31: 22 | B31: Coastal Bend | C31: 542 | D31: Region 2 ESC | E31: 0 | F31: 36 | G31: 0 | H31: 0 | I31: 93 | J31: 0 | K31: 1 | L31: 78 | M31: 0.01282051282 | N31: 1 | O31: 78 | P31: 0.01282051282 | Q31: 23 | R31: 123 | S31: 0.1869918699 | T31: 32 | U31: 285 | V31: 0.1122807018 | W31: 27 | X31: 295 | Y31: 0.09152542373 | Z31: 67 | AA31: 724 | AB31: 0.09254143646 | AC31: 28 | AD31: 232 | AE31: 0.1206896552 | AF31: 70 | AG31: 484 | AH31: 0.1446280992 | AI31: 56 | AJ31: 556 | AK31: 0.1007194245 | AL31: 99 | AM31: 820 | AN31: 0.1207317073 | AO31: 50 | AP31: 299 | AQ31: 0.1672240803 | AR31: 62 | AS31: 424 | AT31: 0.1462264151 | AU31: 56 | AV31: 389 | AW31: 0.1439588689 | AX31: 85 | AY31: 651 | AZ31: 0.1305683564 | BA31: 10 | BB31: 131 | BC31: 0.07633587786 | BD31: 23 | BE31: 365 | BF31: 0.06301369863 | BG31: 35 | BH31: 319 | BI31: 0.1097178683 | BJ31: 91 | BK31: 944 | BL31: 0.09639830508 | BM31: 9 | BN31: 21 | BO31: 0.4285714286 | BP31: 30 | BQ31: 153 | BR31: 0.1960784314 | BS31: 35 | BT31: 177 | BU31: 0.197740113
A32: 23 | B32: Lower Rio | C32: 524 | D32: Region 1 ESC | E32: 11 | F32: 45 | G32: 0.2444444444 | H32: 108 | I32: 399 | J32: 0.2706766917 | K32: 85 | L32: 273 | M32: 0.3113553114 | N32: 268 | O32: 721 | P32: 0.3717059639 | Q32: 23 | R32: 58 | S32: 0.3965517241 | T32: 224 | U32: 576 | V32: 0.3888888889 | W32: 225 | X32: 605 | Y32: 0.3719008264 | Z32: 789 | AA32: 1640 | AB32: 0.481097561 | AC32: 70 | AD32: 112 | AE32: 0.625 | AF32: 342 | AG32: 732 | AH32: 0.4672131148 | AI32: 331 | AJ32: 808 | AK32: 0.4096534653 | AL32: 753 | AM32: 1755 | AN32: 0.4290598291 | AO32: 97 | AP32: 253 | AQ32: 0.3833992095 | AR32: 318 | AS32: 722 | AT32: 0.4404432133 | AU32: 304 | AV32: 712 | AW32: 0.4269662921 | AX32: 685 | AY32: 1665 | AZ32: 0.4114114114 | BA32: 89 | BB32: 321 | BC32: 0.277258567 | BD32: 306 | BE32: 794 | BF32: 0.3853904282 | BG32: 218 | BH32: 546 | BI32: 0.3992673993 | BJ32: 588 | BK32: 1501 | BL32: 0.3917388408 | BM32: 37 | BN32: 117 | BO32: 0.3162393162 | BP32: 234 | BQ32: 541 | BR32: 0.4325323475 | BS32: 191 | BT32: 514 | BU32: 0.3715953307
A33: 24 | B33: Cameron County | C33: 506 | D33: Brownsville ISD | E33: 5 | F33: 27 | G33: 0.1851851852 | H33: 80 | I33: 312 | J33: 0.2564102564 | K33: 70 | L33: 243 | M33: 0.2880658436 | N33: 237 | O33: 673 | P33: 0.3521545319 | Q33: 7 | R33: 28 | S33: 0.25 | T33: 97 | U33: 328 | V33: 0.2957317073 | W33: 108 | X33: 297 | Y33: 0.3636363636 | Z33: 333 | AA33: 873 | AB33: 0.381443299 | AC33: 28 | AD33: 97 | AE33: 0.2886597938 | AF33: 197 | AG33: 472 | AH33: 0.4173728814 | AI33: 205 | AJ33: 556 | AK33: 0.368705036 | AL33: 394 | AM33: 974 | AN33: 0.4045174538 | AO33: 17 | AP33: 54 | AQ33: 0.3148148148 | AR33: 171 | AS33: 390 | AT33: 0.4384615385 | AU33: 222 | AV33: 488 | AW33: 0.4549180328 | AX33: 337 | AY33: 921 | AZ33: 0.3659066232 | BA33: 26 | BB33: 69 | BC33: 0.3768115942 | BD33: 167 | BE33: 432 | BF33: 0.3865740741 | BG33: 135 | BH33: 389 | BI33: 0.3470437018 | BJ33: 252 | BK33: 821 | BL33: 0.3069427527 | BM33: 17 | BN33: 57 | BO33: 0.298245614 | BP33: 104 | BQ33: 370 | BR33: 0.2810810811 | BS33: 86 | BT33: 319 | BU33: 0.2695924765
A34: 25 | B34: Texoma | C34: 514 | D34: Grayson College | E34: 9 | F34: 32 | G34: 0.28125 | H34: 24 | I34: 68 | J34: 0.3529411765 | K34: 21 | L34: 51 | M34: 0.4117647059 | N34: 53 | O34: 111 | P34: 0.4774774775 | Q34: 18 | R34: 54 | S34: 0.3333333333 | T34: 43 | U34: 97 | V34: 0.4432989691 | W34: 25 | X34: 77 | Y34: 0.3246753247 | Z34: 52 | AA34: 138 | AB34: 0.3768115942 | AC34: 30 | AD34: 75 | AE34: 0.4 | AF34: 53 | AG34: 120 | AH34: 0.4416666667 | AI34: 49 | AJ34: 110 | AK34: 0.4454545455 | AL34: 160 | AM34: 284 | AN34: 0.5633802817 | AO34: 21 | AP34: 63 | AQ34: 0.3333333333 | AR34: 62 | AS34: 129 | AT34: 0.480620155 | AU34: 47 | AV34: 120 | AW34: 0.3916666667 | AX34: 72 | AY34: 214 | AZ34: 0.3364485981 | BA34: 43 | BB34: 112 | BC34: 0.3839285714 | BD34: 42 | BE34: 179 | BF34: 0.2346368715 | BG34: 21 | BH34: 94 | BI34: 0.2234042553 | BJ34: 57 | BK34: 144 | BL34: 0.3958333333 | BM34: 37 | BN34: 96 | BO34: 0.3854166667 | BP34: 23 | BQ34: 101 | BR34: 0.2277227723 | BS34: 25 | BT34: 126 | BU34: 0.1984126984
A35: 26 | B35: Central Texas | C35: 534 | D35: Central Texas College | E35: 7 | F35: 98 | G35: 0.07142857143 | H35: 16 | I35: 166 | J35: 0.09638554217 | K35: 17 | L35: 117 | M35: 0.1452991453 | N35: 51 | O35: 226 | P35: 0.2256637168 | Q35: 5 | R35: 83 | S35: 0.06024096386 | T35: 9 | U35: 58 | V35: 0.1551724138 | W35: 6 | X35: 62 | Y35: 0.09677419355 | Z35: 25 | AA35: 145 | AB35: 0.1724137931 | AC35: 1 | AD35: 17 | AE35: 0.05882352941 | AF35: 1 | AG35: 51 | AH35: 0.01960784314 | AI35: 6 | AJ35: 28 | AK35: 0.2142857143 | AL35: 11 | AM35: 120 | AN35: 0.09166666667 | AO35: 0 | AP35: 12 | AQ35: 0 | AR35: 7 | AS35: 38 | AT35: 0.1842105263 | AU35: 6 | AV35: 73 | AW35: 0.08219178082 | AX35: 10 | AY35: 147 | AZ35: 0.06802721088 | BA35: 1 | BB35: 38 | BC35: 0.02631578947 | BD35: 4 | BE35: 55 | BF35: 0.07272727273 | BG35: 4 | BH35: 68 | BI35: 0.05882352941 | BJ35: 13 | BK35: 167 | BL35: 0.07784431138 | BM35: 1 | BN35: 13 | BO35: 0.07692307692 | BP35: 0 | BQ35: 26 | BR35: 0 | BS35: 1 | BT35: 23 | BU35: 0.04347826087
A36: 26 | B36: Central Texas | C36: 535 | D36: Temple College | E36: 5 | F36: 21 | G36: 0.2380952381 | H36: 21 | I36: 105 | J36: 0.2 | K36: 21 | L36: 63 | M36: 0.3333333333 | N36: 22 | O36: 121 | P36: 0.1818181818 | Q36: 8 | R36: 54 | S36: 0.1481481481 | T36: 23 | U36: 156 | V36: 0.1474358974 | W36: 25 | X36: 139 | Y36: 0.1798561151 | Z36: 44 | AA36: 290 | AB36: 0.1517241379 | AC36: 6 | AD36: 87 | AE36: 0.06896551724 | AF36: 18 | AG36: 160 | AH36: 0.1125 | AI36: 14 | AJ36: 147 | AK36: 0.09523809524 | AL36: 25 | AM36: 265 | AN36: 0.09433962264 | AO36: 15 | AP36: 94 | AQ36: 0.1595744681 | AR36: 41 | AS36: 178 | AT36: 0.2303370787 | AU36: 40 | AV36: 176 | AW36: 0.2272727273 | AX36: 83 | AY36: 370 | AZ36: 0.2243243243 | BA36: 18 | BB36: 118 | BC36: 0.1525423729 | BD36: 71 | BE36: 267 | BF36: 0.265917603 | BG36: 53 | BH36: 242 | BI36: 0.2190082645 | BJ36: 66 | BK36: 316 | BL36: 0.2088607595 | BM36: 11 | BN36: 87 | BO36: 0.1264367816 | BP36: 41 | BQ36: 285 | BR36: 0.1438596491 | BS36: 39 | BT36: 215 | BU36: 0.1813953488
A37: 27 | B37: Middle Rio | C37: 530 | D37: Southwest Texas Junior College | E37: 3 | F37: 81 | G37: 0.03703703704 | H37: 7 | I37: 268 | J37: 0.02611940299 | K37: 3 | L37: 140 | M37: 0.02142857143 | N37: 11 | O37: 246 | P37: 0.04471544715 | Q37: 2 | R37: 66 | S37: 0.0303030303 | T37: 6 | U37: 157 | V37: 0.03821656051 | W37: 2 | X37: 127 | Y37: 0.0157480315 | Z37: 4 | AA37: 307 | AB37: 0.01302931596 | AC37: 5 | AD37: 142 | AE37: 0.03521126761 | AF37: 9 | AG37: 243 | AH37: 0.03703703704 | AI37: 10 | AJ37: 234 | AK37: 0.04273504274 | AL37: 15 | AM37: 374 | AN37: 0.04010695187 | AO37: 1 | AP37: 92 | AQ37: 0.01086956522 | AR37: 8 | AS37: 282 | AT37: 0.02836879433 | AU37: 4 | AV37: 180 | AW37: 0.02222222222 | AX37: 10 | AY37: 356 | AZ37: 0.02808988764 | BA37: 5 | BB37: 133 | BC37: 0.03759398496 | BD37: 3 | BE37: 256 | BF37: 0.01171875 | BG37: 5 | BH37: 128 | BI37: 0.0390625 | BJ37: 8 | BK37: 310 | BL37: 0.02580645161 | BM37: 0 | BN37: 83 | BO37: 0 | BP37: 1 | BQ37: 235 | BR37: 0.004255319149 | BS37: 7 | BT37: 157 | BU37: 0.04458598726
A38: 28 | B38: Gulf Coast | C38: 515 | D38: Houston-Galveston Area Council | E38: 808 | F38: 1872 | G38: 0.4316239316 | H38: 2940 | I38: 6188 | J38: 0.4751131222 | K38: 1721 | L38: 3284 | M38: 0.5240560292 | N38: 4357 | O38: 8235 | P38: 0.5290831815 | Q38: 1057 | R38: 2195 | S38: 0.4815489749 | T38: 2051 | U38: 4276 | V38: 0.4796538821 | W38: 1804 | X38: 3441 | Y38: 0.5242662017 | Z38: 3998 | AA38: 7637 | AB38: 0.5235039937 | AC38: 1036 | AD38: 2513 | AE38: 0.4122562674 | AF38: 2490 | AG38: 5258 | AH38: 0.4735640928 | AI38: 2009 | AJ38: 4173 | AK38: 0.4814282291 | AL38: 3802 | AM38: 7535 | AN38: 0.504578633 | AO38: 1140 | AP38: 2649 | AQ38: 0.4303510759 | AR38: 2662 | AS38: 5963 | AT38: 0.4464195875 | AU38: 1918 | AV38: 4295 | AW38: 0.4465657742 | AX38: 3284 | AY38: 7398 | AZ38: 0.4439037578 | BA38: 1092 | BB38: 2677 | BC38: 0.4079193127 | BD38: 1963 | BE38: 4552 | BF38: 0.4312390158 | BG38: 1350 | BH38: 3162 | BI38: 0.4269449715 | BJ38: 3467 | BK38: 7752 | BL38: 0.4472394221 | BM38: 720 | BN38: 1939 | BO38: 0.3713254255 | BP38: 2097 | BQ38: 5021 | BR38: 0.4176458873 | BS38: 1333 | BT38: 3226 | BU38: 0.4132052077
D39: Orphan Grantees | E39: 57 | F39: 256 | G39: 0.22265625 | H39: 245 | I39: 1097 | J39: 0.2233363719 | K39: 144 | L39: 556 | M39: 0.2589928058 | N39: 344 | O39: 1160 | P39: 0.2965517241 | Q39: 16 | R39: 76 | S39: 0.2105263158 | T39: 14 | U39: 74 | V39: 0.1891891892 | W39: 12 | X39: 46 | Y39: 0.2608695652 | Z39: 27 | AA39: 81 | AB39: 0.3333333333 | AC39: 4 | AD39: 14 | AE39: 0.2857142857 | AF39: 5 | AG39: 27 | AH39: 0.1851851852 | AI39: 6 | AJ39: 27 | AK39: 0.2222222222 | AL39: 25 | AM39: 70 | AN39: 0.3571428571 | AO39: 1 | AP39: 11 | AQ39: 0.09090909091 | AR39: 10 | AS39: 32 | AT39: 0.3125 | AU39: 7 | AV39: 23 | AW39: 0.3043478261 | AX39: 10 | AY39: 65 | AZ39: 0.1538461538 | BA39: 1 | BB39: 5 | BC39: 0.2 | BD39: 6 | BE39: 24 | BF39: 0.25 | BG39: 1 | BH39: 15 | BI39: 0.06666666667 | BJ39: 7 | BK39: 51 | BL39: 0.137254902 | BO39: NA | BR39: NA | BU39: NA
B40: Statewide | D40: Statewide | E40: 1476 | F40: 4642 | G40: =E40/F40 -> 0.3179663938 | H40: 6946 | I40: 18545 | J40: =H40/I40 -> 0.3745483958 | K40: 4678 | L40: 10821 | M40: =K40/L40 -> 0.4323075501 | N40: 12604 | O40: 27002 | P40: =N40/O40 -> 0.4667802385 | Q40: 1872 | R40: 4910 | S40: =Q40/R40 -> 0.3812627291 | T40: 5938 | U40: 14632 | V40: =T40/U40 -> 0.405822854 | W40: 5065 | X40: 12465 | Y40: =W40/X40 -> 0.4063377457 | Z40: 12454 | AA40: 29033 | AB40: =Z40/AA40 -> 0.4289601488 | AC40: 2268 | AD40: 7102 | AE40: =AC40/AD40 -> 0.3193466629 | AF40: 7287 | AG40: 18228 | AH40: =AF40/AG40 -> 0.3997695853 | AI40: 6315 | AJ40: 16243 | AK40: =AI40/AJ40 -> 0.3887828603 | AL40: 13785 | AM40: 32162 | AN40: =AL40/AM40 -> 0.4286114048 | AO40: 2470 | AP40: 7075 | AQ40: =AO40/AP40 -> 0.3491166078 | AR40: 7873 | AS40: 18945 | AT40: =AR40/AS40 -> 0.4155713909 | AU40: 6830 | AV40: 15941 | AW40: =AU40/AV40 -> 0.4284549275 | AX40: 13491 | AY40: 31088 | AZ40: =AX40/AY40 -> 0.4339616572 | BA40: 2778 | BB40: 8024 | BC40: =BA40/BB40 -> 0.3462113659 | BD40: 7459 | BE40: 18593 | BF40: =BD40/BE40 -> 0.4011724843 | BG40: 5220 | BH40: 13161 | BI40: =BG40/BH40 -> 0.3966263962 | BJ40: 12891 | BK40: 30685 | BL40: =BJ40/BK40 -> 0.4201075444 | BM40: 2464 | BN40: 6832 | BO40: =BM40/BN40 -> 0.3606557377 | BP40: 6969 | BQ40: 17589 | BR40: 0.3962135426 | BS40: 5227 | BT40: 12839 | BU40: =BS40/BT40 -> 0.4071189345
A41: Funds include: 1,3,5,8,17,18,19,20,21,23,24,26,27,28,29,30,31,33,34,35,36,37,40,43,44,45,46,47,48,49,50,52,53,54,55,56 Total: Total participants for quarterly period described Missing SSN: Number of exiters having an invalid/missing SSN as described by the Social Security Administration. Rate: Rate of Invalid participants to Total Participants.

Sheet Exiters - PY
E1: PY13 (Jul13 - Jun14) | H1: PY14 (Jul14 - Jun15) | K1: PY15 (Jul15 - Jun16) | N1: PY16 (Jul16 - Jun17) | Q1: PY17 (Jul17 - Jun18) | T1: PY18 (Jul18 - Mar19)
A2: WDA # | B2: WDA Name | C2: Grantee # | D2: Grantee Name | E2: Missing SSN | F2: Total Exiters | G2: Rate | H2: Missing SSN | I2: Total Exiters | J2: Rate | K2: Missing SSN | L2: Total Exiters | M2: Rate | N2: Missing SSN | O2: Total Exiters | P2: Rate | Q2: Missing SSN | R2: Total Exiters | S2: Rate | T2: Missing SSN | U2: Total Exiters | V2: Rate
A3: 1 | B3: Panhandle | C3: 502 | D3: Amarillo College | E3: 68 | F3: 453 | G3: =E3/F3 -> 0.1501103753 | H3: 175 | I3: 754 | J3: =H3/I3 -> 0.2320954907 | K3: 456 | L3: 1415 | M3: =K3/L3 -> 0.3222614841 | N3: 484 | O3: 1340 | P3: =N3/O3 -> 0.3611940299 | Q3: 358 | R3: 1429 | S3: =Q3/R3 -> 0.2505248425 | T3: 164 | U3: 765 | V3: =T3/U3 -> 0.214379085
A4: 2 | B4: South Plains | C4: 526 | D4: Region 17 ESC, South Plains | E4: 55 | F4: 218 | G4: =E4/F4 -> 0.252293578 | H4: 228 | I4: 760 | J4: =H4/I4 -> 0.3 | K4: 179 | L4: 753 | M4: =K4/L4 -> 0.2377158035 | N4: 178 | O4: 872 | P4: =N4/O4 -> 0.2041284404 | Q4: 154 | R4: 707 | S4: =Q4/R4 -> 0.2178217822 | T4: 124 | U4: 564 | V4: =T4/U4 -> 0.219858156
A5: 3 | B5: North Texas | C5: 528 | D5: Region 9 ESC | E5: 132 | F5: 434 | G5: 0.3041474654 | H5: 172 | I5: 494 | J5: 0.3481781377 | K5: 178 | L5: 482 | M5: 0.3692946058 | N5: 131 | O5: 457 | P5: 0.2866520788 | Q5: 119 | R5: 510 | S5: 0.2333333333 | T5: 89 | U5: 297 | V5: 0.2996632997
A6: 4 | B6: North Central | C6: 533 | D6: Weatherford ISD | E6: 85 | F6: 204 | G6: 0.4166666667 | H6: 137 | I6: 314 | J6: 0.4363057325 | K6: 145 | L6: 351 | M6: 0.4131054131 | N6: 115 | O6: 272 | P6: 0.4227941176 | Q6: 88 | R6: 233 | S6: 0.3776824034 | T6: 78 | U6: 229 | V6: 0.3406113537
A7: 4 | B7: North Central | C7: 536 | D7: Denton ISD | E7: 805 | F7: 1302 | G7: 0.6182795699 | H7: 1074 | I7: 1685 | J7: 0.637388724 | K7: 1675 | L7: 2529 | M7: 0.6623171214 | N7: 1243 | O7: 1970 | P7: 0.630964467 | Q7: 1544 | R7: 2216 | S7: 0.6967509025 | T7: 1024 | U7: 1457 | V7: 0.7028140014
A8: 4 | B8: North Central | C8: 540 | D8: Navarro College | E8: 111 | F8: 363 | G8: 0.305785124 | H8: 121 | I8: 418 | J8: 0.2894736842 | K8: 186 | L8: 497 | M8: 0.3742454728 | N8: 158 | O8: 489 | P8: 0.3231083845 | Q8: 108 | R8: 520 | S8: 0.2076923077 | T8: 65 | U8: 331 | V8: 0.1963746224
A9: 4 | B9: North Central | C9: 541 | D9: Paris Jr College - North Central | G9: NA | H9: 16 | I9: 29 | J9: 0.5517241379 | K9: 49 | L9: 119 | M9: 0.4117647059 | N9: 34 | O9: 114 | P9: 0.298245614 | Q9: 38 | R9: 144 | S9: 0.2638888889 | T9: 8 | U9: 52 | V9: 0.1538461538
A10: 5 | B10: Tarrant County | C10: 538 | D10: Tarrant County WDB | E10: 1571 | F10: 2998 | G10: 0.5240160107 | H10: 2384 | I10: 4136 | J10: 0.5764023211 | K10: 2678 | L10: 4489 | M10: 0.5965693918 | N10: 2865 | O10: 4444 | P10: 0.6446894689 | Q10: 2459 | R10: 4278 | S10: 0.574801309 | T10: 1407 | U10: 2599 | V10: 0.5413620623
A11: 6 | B11: Dallas County | C11: 509 | D11: Dallas County LDB | E11: 2958 | F11: 4465 | G11: 0.6624860022 | H11: 1766 | I11: 3328 | J11: 0.5306490385 | K11: 2913 | L11: 6626 | M11: 0.4396317537 | N11: 4555 | O11: 7676 | P11: 0.593408025 | Q11: 4901 | R11: 8054 | S11: 0.6085175068 | T11: 3063 | U11: 4952 | V11: 0.6185379645
A12: 7 | B12: North East Texas | C12: 523 | D12: Paris Junior College, Northeast Texas | E12: 182 | F12: 514 | G12: 0.3540856031 | H12: 118 | I12: 394 | J12: 0.2994923858 | K12: 161 | L12: 460 | M12: 0.35 | N12: 114 | O12: 350 | P12: 0.3257142857 | Q12: 146 | R12: 441 | S12: 0.3310657596 | T12: 89 | U12: 261 | V12: 0.3409961686
A13: 7 | B13: North East Texas | C13: 543 | D13: Texarkana College | E13: 317 | F13: 682 | G13: 0.4648093842 | H13: 23 | I13: 331 | J13: 0.06948640483 | K13: 31 | L13: 329 | M13: 0.09422492401 | N13: 23 | O13: 339 | P13: 0.06784660767 | Q13: 25 | R13: 293 | S13: 0.08532423208 | T13: 25 | U13: 151 | V13: 0.1655629139
A14: 8 | B14: East Texas | C14: 519 | D14: Literacy Council of Tyler | E14: 669 | F14: 2020 | G14: 0.3311881188 | H14: 772 | I14: 2034 | J14: 0.3795476893 | K14: 798 | L14: 2283 | M14: 0.3495400788 | N14: 714 | O14: 2073 | P14: 0.3444283647 | Q14: 669 | R14: 1865 | S14: 0.3587131367 | T14: 468 | U14: 1204 | V14: 0.3887043189
A15: 9 | B15: West Central | C15: 501 | D15: Abilene ISD | E15: 32 | F15: 420 | G15: 0.07619047619 | H15: 70 | I15: 685 | J15: 0.102189781 | K15: 46 | L15: 642 | M15: 0.07165109034 | N15: 87 | O15: 812 | P15: 0.1071428571 | Q15: 103 | R15: 846 | S15: 0.121749409 | T15: 63 | U15: 501 | V15: 0.125748503
A16: 10 | B16: Borderplex | C16: 544 | D16: Ysleta ISD | E16: 626 | F16: 2849 | G16: 0.2197262197 | H16: 516 | I16: 2714 | J16: 0.1901252763 | K16: 439 | L16: 2686 | M16: 0.1634400596 | N16: 390 | O16: 2474 | P16: 0.1576394503 | Q16: 251 | R16: 2533 | S16: 0.09909198579 | T16: 121 | U16: 1344 | V16: 0.0900297619
A17: 11 | B17: Permian Basin | C17: 517 | D17: Howard College, Permian Basin | E17: 88 | F17: 183 | G17: 0.4808743169 | H17: 86 | I17: 160 | J17: 0.5375 | K17: 96 | L17: 215 | M17: 0.4465116279 | N17: 68 | O17: 163 | P17: 0.4171779141 | Q17: 45 | R17: 131 | S17: 0.3435114504 | T17: 143 | U17: 191 | V17: 0.7486910995
A18: 11 | B18: Permian Basin | C18: 525 | D18: Region 17 ESC, Permian Basin | E18: 19 | F18: 57 | G18: 0.3333333333 | H18: 68 | I18: 162 | J18: 0.4197530864 | K18: 58 | L18: 144 | M18: 0.4027777778 | N18: 56 | O18: 133 | P18: 0.4210526316 | Q18: 62 | R18: 137 | S18: 0.4525547445 | T18: 33 | U18: 66 | V18: 0.5
A19: 11 | B19: Permian Basin | C19: 539 | D19: Midland College | E19: 124 | F19: 551 | G19: 0.2250453721 | H19: 200 | I19: 845 | J19: 0.2366863905 | K19: 277 | L19: 958 | M19: 0.2891440501 | N19: 247 | O19: 1001 | P19: 0.2467532468 | Q19: 211 | R19: 847 | S19: 0.2491145218 | T19: 105 | U19: 563 | V19: 0.1865008881
A20: 11 | B20: Permian Basin | C20: 545 | D20: Odessa College | E20: 151 | F20: 618 | G20: 0.2443365696 | H20: 164 | I20: 729 | J20: 0.2249657064 | K20: 152 | L20: 847 | M20: 0.1794569067 | N20: 180 | O20: 921 | P20: 0.1954397394 | Q20: 168 | R20: 852 | S20: 0.1971830986 | T20: 91 | U20: 513 | V20: 0.1773879142
A21: 12 | B21: Concho Valley | C21: 516 | D21: Howard College, Concho Valley | E21: 169 | F21: 538 | G21: 0.3141263941 | H21: 193 | I21: 426 | J21: 0.4530516432 | K21: 260 | L21: 620 | M21: 0.4193548387 | N21: 143 | O21: 523 | P21: 0.2734225621 | Q21: 12 | R21: 447 | S21: 0.02684563758 | T21: 13 | U21: 269 | V21: 0.04832713755
A22: 13 | B22: Heart of Texas | C22: 520 | D22: McLennan Community College | E22: 443 | F22: 1443 | G22: 0.306999307 | H22: 399 | I22: 1087 | J22: 0.3670653174 | K22: 366 | L22: 1013 | M22: 0.3613030602 | N22: 262 | O22: 806 | P22: 0.3250620347 | Q22: 292 | R22: 906 | S22: 0.3222958057 | T22: 130 | U22: 487 | V22: 0.2669404517
A23: 14 | B23: Capital Area | C23: 504 | D23: Austin Community College | E23: 1182 | F23: 2436 | G23: 0.4852216749 | H23: 1265 | I23: 2494 | J23: 0.5072173216 | K23: 1395 | L23: 3089 | M23: 0.4516024603 | N23: 1644 | O23: 3440 | P23: 0.4779069767 | Q23: 1489 | R23: 3335 | S23: 0.4464767616 | T23: 746 | U23: 1972 | V23: 0.378296146
A24: 15 | B24: Rural Capital | C24: 508 | D24: Community Action Inc. | E24: 268 | F24: 778 | G24: 0.3444730077 | H24: 302 | I24: 840 | J24: 0.3595238095 | K24: 387 | L24: 1052 | M24: 0.3678707224 | N24: 706 | O24: 1407 | P24: 0.5017768301 | Q24: 762 | R24: 1820 | S24: 0.4186813187 | T24: 447 | U24: 1262 | V24: 0.354199683
A25: 16 | B25: Brazos Valley | C25: 505 | D25: Brazos Valley COG | E25: 1157 | F25: 2256 | G25: 0.5128546099 | H25: 617 | I25: 1231 | J25: 0.5012185215 | K25: 440 | L25: 1063 | M25: 0.4139228598 | N25: 366 | O25: 803 | P25: 0.4557907846 | Q25: 548 | R25: 1184 | S25: 0.4628378378 | T25: 50 | U25: 195 | V25: 0.2564102564
A26: 17 | B26: Deep East Texas | C26: 503 | D26: Angelina College | E26: 129 | F26: 428 | G26: 0.3014018692 | H26: 212 | I26: 709 | J26: 0.2990126939 | K26: 258 | L26: 900 | M26: 0.2866666667 | N26: 211 | O26: 682 | P26: 0.3093841642 | Q26: 259 | R26: 929 | S26: 0.2787944026 | T26: 168 | U26: 460 | V26: 0.3652173913
A27: 18 | B27: Southeast Texas | C27: 527 | D27: Region 5 ESC | E27: 29 | F27: 244 | G27: 0.118852459 | H27: 167 | I27: 554 | J27: 0.3014440433 | K27: 284 | L27: 837 | M27: 0.339307049 | N27: 442 | O27: 1091 | P27: 0.4051329056 | Q27: 326 | R27: 810 | S27: 0.4024691358 | T27: 298 | U27: 665 | V27: 0.4481203008
A28: 19 | B28: Golden Crescent | C28: 532 | D28: Victoria College | E28: 135 | F28: 503 | G28: 0.268389662 | H28: 149 | I28: 615 | J28: 0.2422764228 | K28: 191 | L28: 892 | M28: 0.2141255605 | N28: 169 | O28: 869 | P28: 0.1944764097 | Q28: 64 | R28: 523 | S28: 0.1223709369 | T28: 69 | U28: 462 | V28: 0.1493506494
A29: 20 | B29: Alamo | C29: 512 | D29: Region 20 ESC | E29: 2050 | F29: 5215 | G29: 0.393096836 | H29: 2307 | I29: 6199 | J29: 0.3721567995 | K29: 2448 | L29: 6650 | M29: 0.3681203008 | N29: 2676 | O29: 6098 | P29: 0.4388324041 | Q29: 2324 | R29: 5131 | S29: 0.4529331514 | T29: 1366 | U29: 3125 | V29: 0.43712
A30: 21 | B30: South Texas | C30: 518 | D30: Laredo College | E30: 215 | F30: 893 | G30: 0.2407614782 | H30: 334 | I30: 1189 | J30: 0.2809083263 | K30: 596 | L30: 1793 | M30: 0.3324037925 | N30: 363 | O30: 1091 | P30: 0.3327222731 | Q30: 379 | R30: 1366 | S30: 0.2774524158 | T30: 312 | U30: 922 | V30: 0.3383947939
A31: 22 | B31: Coastal Bend | C31: 542 | D31: Region 2 ESC | E31: 2 | F31: 272 | G31: 0.007352941176 | H31: 146 | I31: 1389 | J31: 0.1051115911 | K31: 245 | L31: 2019 | M31: 0.1213472016 | N31: 246 | O31: 1718 | P31: 0.1431897555 | Q31: 156 | R31: 1727 | S31: 0.09033005211 | T31: 83 | U31: 402 | V31: 0.2064676617
A32: 23 | B32: Lower Rio | C32: 524 | D32: Region 1 ESC | E32: 471 | F32: 1432 | G32: 0.3289106145 | H32: 1252 | I32: 2857 | J32: 0.4382219111 | K32: 1478 | L32: 3378 | M32: 0.4375370041 | N32: 1388 | O32: 3310 | P32: 0.4193353474 | Q32: 1184 | R32: 3127 | S32: 0.3786376719 | T32: 507 | U32: 1278 | V32: 0.396713615
A33: 24 | B33: Cameron County | C33: 506 | D33: Brownsville ISD | E33: 391 | F33: 1245 | G33: 0.3140562249 | H33: 532 | I33: 1498 | J33: 0.3551401869 | K33: 811 | L33: 2069 | M33: 0.3919768004 | N33: 734 | O33: 1824 | P33: 0.4024122807 | Q33: 571 | R33: 1688 | S33: 0.3382701422 | T33: 230 | U33: 828 | V33: 0.2777777778
A34: 25 | B34: Texoma | C34: 514 | D34: Grayson College | E34: 103 | F34: 255 | G34: 0.4039215686 | H34: 136 | I34: 362 | J34: 0.3756906077 | K34: 285 | L34: 574 | M34: 0.4965156794 | N34: 195 | O34: 514 | P34: 0.3793774319 | Q34: 162 | R34: 521 | S34: 0.310940499 | T34: 87 | U34: 337 | V34: 0.2581602374
A35: 26 | B35: Central Texas | C35: 534 | D35: Central Texas College | E35: 91 | F35: 602 | G35: 0.1511627907 | H35: 45 | I35: 348 | J35: 0.1293103448 | K35: 19 | L35: 216 | M35: 0.08796296296 | N35: 23 | O35: 270 | P35: 0.08518518519 | Q35: 22 | R35: 327 | S35: 0.06727828746 | T35: 2 | U35: 70 | V35: 0.02857142857
A36: 26 | B36: Central Texas | C36: 535 | D36: Temple College | E36: 68 | F36: 306 | G36: 0.2222222222 | H36: 98 | I36: 629 | J36: 0.1558028617 | K36: 62 | L36: 653 | M36: 0.09494640123 | N36: 174 | O36: 802 | P36: 0.216957606 | Q36: 208 | R36: 932 | S36: 0.2231759657 | T36: 99 | U36: 636 | V36: 0.1556603774
A37: 27 | B37: Middle Rio | C37: 530 | D37: Southwest Texas Junior College | E37: 23 | F37: 718 | G37: 0.03203342618 | H37: 14 | I37: 641 | J37: 0.02184087363 | K37: 39 | L37: 979 | M37: 0.03983656793 | N37: 23 | O37: 901 | P37: 0.02552719201 | Q37: 21 | R37: 817 | S37: 0.02570379437 | T37: 10 | U37: 513 | V37: 0.01949317739
A38: 28 | B38: Gulf Coast | C38: 515 | D38: Houston-Galveston Area Council | E38: 9698 | F38: 19314 | G38: 0.5021228125 | H38: 8787 | I38: 17278 | J38: 0.5085658062 | K38: 9142 | L38: 19087 | M38: 0.4789647404 | N38: 8854 | O38: 19983 | P38: 0.4430766151 | Q38: 7749 | R38: 17828 | S38: 0.4346533543 | T38: 4416 | U38: 10869 | V38: 0.4062931272
D39: Orphan Grantees | E39: 777 | F39: 3016 | G39: 0.2576259947 | H39: 69 | I39: 276 | J39: 0.25 | K39: 40 | L39: 138 | M39: 0.2898550725 | N39: 28 | O39: 131 | P39: 0.213740458 | Q39: 14 | R39: 93 | S39: 0.1505376344 | V39: NA
B40: Statewide | D40: Statewide | E40: 25383 | F40: 60175 | G40: =E40/F40 -> 0.4218196926 | H40: 25026 | I40: 60201 | J40: =H40/I40 -> 0.4157073803 | K40: 29222 | L40: 72621 | M40: =K40/L40 -> 0.4023904931 | N40: 30257 | O40: 71988 | P40: =N40/O40 -> 0.4203061621 | Q40: 27927 | R40: 69302 | S40: =Q40/R40 -> 0.4029753831 | T40: 16152 | U40: 40619 | V40: =T40/U40 -> 0.3976464216
A41: Funds include: 1,3,5,8,17,18,19,20,21,23,24,26,27,28,29,30,31,33,34,35,36,37,40,43,44,45,46,47,48,49,50,52,53,54,55,56 Total: Total participants for quarterly period described Missing SSN: Number of exiters having an invalid/missing SSN as described by the Social Security Administration. Rate: Rate of Invalid participants to Total Participants.
